Workbook

Sheet Read me
A1: Read Me
A8: 1)
A9: Dear User, thank you for using my template. Please remove sample entries from the register
A12: 2)
A13: A register is designed to be filled with data for ONLY ONE type (grade) of concrete. Consequently you have to use separate registers if you are using different concrete mixes.
A16: 3)
A17: Usually only cells on the sheet "Register" require data-entry. Cells containing formulas or functions are protected, the password is blank should you wish to modify anything.
A20: 4)
A21: To avoid typing mistakes resulting in incorrect filter results, the entries in the column "Supplier" are restricted. To modify acceptable values change entries on the sheet "Supplier".
A24: 5)
A25: To get correct charts, keep controlling that the entire range of data is covered. By default only the entries until line 100 are covered by charts 3 & 4 on the dashboard and only as many entries as existing are covered by chart 5. Chart 5 therefore has to be checked often. For adjustment right click the chart area and choose "Select Data" from the menue. In the "Select Data Source" window one by one update the series by changing the "Series Values" (you may find something like "='Register'!$CC$10:$CC$100", just change the "100" to "200" etc.).
A32: 6)
A33: On the sheet "Total QTYs" only enter the start date in the first line of the table. Everything else will update automatically.

Sheet Register
A1: Project: | H1: [Project Name] | AS1: Concrete Pouring Register
A2: Sub-Project or Phase: | H2: [Sub-Project or Phase]
A3: Client: | H3: [Client] | AS3: Project Mngr.: | AZ3: [Proj. Mngr.] | BO3: Printed on | BV3: =TODAY() -> 2015-03-11
A4: Client's Representative: | H4: [Client's Representative] | AS4: QA/QC Mngr.: | AZ4: [QA/QC Mngr.]
A5: Contractor: | H5: [Contractor] | AS5: Mix Design: | AZ5: [Mix Design]
AS6: Ref.-No.: | AZ6: [ref.number]
A7: SN | C7: Cube ID | N7: No. of Cubes | P7: Delivery Note(s) | AB7: Supplier | AF7: Concrete Poured on | AJ7: Grade | AL7: QTY (m3) | AN7: 7-days test | AZ7: 14-days test | BL7: 28-days test | CA7: Cu Sum | CC7: x̄ | CE7: Distr.
AN8: Date | AR8: Result (N/mm2) | AX8: Ø | AZ8: Date | BD8: Result (N/mm2) | BJ8: Ø | BL8: Date | BP8: Result (N/mm2) | BV8: Ø | BX8: Result
A9: A | C9: B | N9: C | P9: D | AB9: E | AF9: F | AJ9: G | AL9: H | AN9: I1 | AR9: I2 | AT9: I3 | AV9: I4 | AX9: I5 | AZ9: J1 | BD9: J2 | BF9: J3 | BH9: J4 | BJ9: J5 | BL9: K1 | BP9: K2 | BR9: K3 | BT9: K4 | BV9: K5 | BX9: K6 | CA9: L | CC9: M | CE9: N
A10: 0001 | C10: B1-BM-GB-A1:A10 - 01/01/2015 | N10: 9 | P10: 1234, 1235, 1236 | AB10: Supplier A | AF10: 2015-01-01 | AJ10: 37 | AL10: 19.0 | AN10: 2015-01-08 | AR10: 35.1 | AT10: 34.0 | AV10: 35.3 | AX10: =IF(SUM(AR10:AW10)=0,"",AVERAGE(AR10:AW10)) -> 34.8 | AZ10: 2015-01-15 | BD10: 37.9 | BF10: 37.3 | BH10: 38.3 | BJ10: =IF(SUM(BD10:BI10)=0,"",AVERAGE(BD10:BI10)) -> 37.8 | BL10: 2015-01-29 | BP10: 39.7 | BR10: 38.9 | BT10: 39.9 | BV10: =IF(SUM(BP10:BU10)=0,"",AVERAGE(BP10:BU10)) -> 39.5 | BX10: Passed | CA10: =IF(BV10="","",BV10-AJ10) -> 2.5 | CC10: =IF(BV10="","",AVERAGE($BV$10:BV10)) -> 39.5 | CE10: =IF(BV10="","",_xlfn.NORM.DIST(BV10,AVERAGE($BV$10:$BV$5000),Dashboard!$L$36,FALSE)) -> 0.424
A11: 0002 | C11: B2-BM-GB-A1:A10 - 01/01/2015 | N11: 9 | P11: 1237, 1238, 1239 | AB11: Supplier B | AF11: 2015-01-01 | AJ11: 37 | AL11: 19.0 | AN11: 2015-01-08 | AR11: 35.3 | AT11: 34.1 | AV11: 35.2 | AX11: 34.9 | AZ11: 2015-01-15 | BD11: 38.1 | BF11: 37.4 | BH11: 38.2 | BJ11: 37.9 | BL11: 2015-01-29 | BP11: 39.9 | BR11: 39.0 | BT11: 39.8 | BV11: 39.6 | BX11: Passed | CA11: 2.6 | CC11: =IF(BV11="","",AVERAGE($BV$10:BV11)) -> 39.5 | CE11: =IF(BV11="","",_xlfn.NORM.DIST(BV11,AVERAGE($BV$10:$BV$5000),Dashboard!$L$36,FALSE)) -> 0.448
A12: 0003 | C12: B3-BM-GB-A1:A10 - 01/01/2015 | N12: 9 | P12: 1240, 1241, 1242 | AB12: Supplier C | AF12: 2015-01-01 | AJ12: 37 | AL12: 19.0 | AN12: 2015-01-08 | AR12: 37.5 | AT12: 36.2 | AV12: 37.1 | AX12: 36.9 | AZ12: 2015-01-15 | BD12: 40.3 | BF12: 39.5 | BH12: 40.1 | BJ12: 40.0 | BL12: 2015-01-29 | BP12: 42.1 | BR12: 40.1 | BT12: 41.7 | BV12: 41.3 | BX12: Passed | CA12: 4.3 | CC12: =IF(BV12="","",AVERAGE($BV$10:BV12)) -> 40.1 | CE12: =IF(BV12="","",_xlfn.NORM.DIST(BV12,AVERAGE($BV$10:$BV$5000),Dashboard!$L$36,FALSE)) -> 0.120
A13: 0004 | C13: B1-BM-GB-B1:B10 - 01/01/2015 | N13: 9 | P13: 1243, 1244, 1245 | AB13: Supplier D | AF13: 2015-01-01 | AJ13: 37 | AL13: 19.0 | AN13: 2015-01-08 | AR13: 35.7 | AT13: 34.3 | AV13: 35.0 | AX13: 35.0 | AZ13: 2015-01-15 | BD13: 38.5 | BF13: 37.6 | BH13: 38.0 | BJ13: 38.0 | BL13: 2015-01-29 | BP13: 40.3 | BR13: 39.2 | BT13: 39.6 | BV13: 39.7 | BX13: Passed | CA13: 2.7 | CC13: =IF(BV13="","",AVERAGE($BV$10:BV13)) -> 40.0 | CE13: =IF(BV13="","",_xlfn.NORM.DIST(BV13,AVERAGE($BV$10:$BV$5000),Dashboard!$L$36,FALSE)) -> 0.488
A14: 0005 | C14: B2-BM-GB-B1:B10 - 01/01/2015 | N14: 9 | P14: 1246, 1247, 1248 | AB14: Supplier E | AF14: 2015-01-01 | AJ14: 37 | AL14: 19.0 | AN14: 2015-01-08 | AR14: 35.9 | AT14: 34.4 | AV14: 34.9 | AX14: 35.1 | AZ14: 2015-01-15 | BD14: 38.7 | BF14: 37.7 | BH14: 37.9 | BJ14: 38.1 | BL14: 2015-01-29 | BP14: 40.5 | BR14: 39.3 | BT14: 39.5 | BV14: 39.8 | BX14: Passed | CA14: 2.8 | CC14: =IF(BV14="","",AVERAGE($BV$10:BV14)) -> 40.0 | CE14: =IF(BV14="","",_xlfn.NORM.DIST(BV14,AVERAGE($BV$10:$BV$5000),Dashboard!$L$36,FALSE)) -> 0.504
A15: 0006 | C15: B3-BM-GB-B1:B10 - 01/01/2015 | N15: 9 | P15: 1249, 1250, 1251 | AB15: Supplier A | AF15: 2015-01-01 | AJ15: 37 | AL15: 19.0 | AN15: 2015-01-08 | AR15: 35.1 | AT15: 33.5 | AV15: 33.8 | AX15: 34.1 | AZ15: 2015-01-15 | BD15: 37.9 | BF15: 36.8 | BH15: 36.8 | BJ15: 37.2 | BL15: 2015-01-29 | BP15: 39.7 | BR15: 38.4 | BT15: 38.4 | BV15: 38.8 | BX15: Passed | CA15: 1.8 | CC15: =IF(BV15="","",AVERAGE($BV$10:BV15)) -> 39.8 | CE15: =IF(BV15="","",_xlfn.NORM.DIST(BV15,AVERAGE($BV$10:$BV$5000),Dashboard!$L$36,FALSE)) -> 0.160
A16: 0007 | C16: B1-BM-GB-C1:C10 - 02/01/2015 | N16: 9 | P16: 1252, 1253, 1254 | AB16: Supplier B | AF16: 2015-01-02 | AJ16: 37 | AL16: 19.0 | AN16: 2015-01-09 | AR16: 36.3 | AT16: 34.6 | AV16: 34.7 | AX16: 35.2 | AZ16: 2015-01-16 | BD16: 39.1 | BF16: 37.9 | BH16: 37.7 | BJ16: 38.2 | BL16: 2015-01-30 | BP16: 40.9 | BR16: 39.5 | BT16: 39.3 | BV16: 39.9 | BX16: Passed | CA16: 2.9 | CC16: =IF(BV16="","",AVERAGE($BV$10:BV16)) -> 39.8 | CE16: =IF(BV16="","",_xlfn.NORM.DIST(BV16,AVERAGE($BV$10:$BV$5000),Dashboard!$L$36,FALSE)) -> 0.524
A17: 0008 | C17: B2-BM-GB-C1:C10 - 02/01/2015 | N17: 9 | P17: 1255, 1256, 1257 | AB17: Supplier C | AF17: 2015-01-02 | AJ17: 37 | AL17: 19.0 | AN17: 2015-01-09 | AR17: 36.5 | AT17: 34.7 | AV17: 34.6 | AX17: 35.3 | AZ17: 2015-01-16 | BD17: 39.3 | BF17: 38.0 | BH17: 37.6 | BJ17: 38.3 | BL17: 2015-01-30 | BP17: 41.1 | BR17: 39.6 | BT17: 39.2 | BV17: 40.0 | BX17: Passed | CA17: 3.0 | CC17: =IF(BV17="","",AVERAGE($BV$10:BV17)) -> 39.8 | CE17: =IF(BV17="","",_xlfn.NORM.DIST(BV17,AVERAGE($BV$10:$BV$5000),Dashboard!$L$36,FALSE)) -> 0.528
A18: 0009 | C18: B3-BM-GB-C1:C10 - 02/01/2015 | N18: 9 | P18: 1258, 1259, 1260 | AB18: Supplier D | AF18: 2015-01-02 | AJ18: 37 | AL18: 19.0 | AN18: 2015-01-09 | AR18: 36.7 | AT18: 34.8 | AV18: 34.5 | AX18: 35.3 | AZ18: 2015-01-16 | BD18: 39.5 | BF18: 38.1 | BH18: 37.5 | BJ18: 38.4 | BL18: 2015-01-30 | BP18: 41.3 | BR18: 39.7 | BT18: 39.1 | BV18: =IF(SUM(BP18:BU18)=0,"",AVERAGE(BP18:BU18)) -> 40.0 | BX18: Passed | CA18: 3.0 | CC18: =IF(BV18="","",AVERAGE($BV$10:BV18)) -> 39.8 | CE18: =IF(BV18="","",_xlfn.NORM.DIST(BV18,AVERAGE($BV$10:$BV$5000),Dashboard!$L$36,FALSE)) -> 0.528
A19: 0010 | C19: B1-BM-SL-A1:C10 - 09/01/2019 | N19: 9 | P19: 1261, 1262, 1263 | AB19: Supplier E | AF19: 2015-01-09 | AJ19: 37 | AL19: 27.0 | AN19: 2015-01-16 | AR19: 38.9 | AT19: 36.9 | AV19: 36.4 | AX19: 37.4 | AZ19: 2015-01-23 | BD19: 41.7 | BF19: 40.2 | BH19: 39.4 | BJ19: 40.4 | BL19: 2015-02-06 | BP19: 43.5 | BR19: 41.8 | BT19: 39.0 | BV19: =IF(SUM(BP19:BU19)=0,"",AVERAGE(BP19:BU19)) -> 41.4 | BX19: Passed | CA19: 4.4 | CC19: =IF(BV19="","",AVERAGE($BV$10:BV19)) -> 40.0 | CE19: =IF(BV19="","",_xlfn.NORM.DIST(BV19,AVERAGE($BV$10:$BV$5000),Dashboard!$L$36,FALSE)) -> 0.087
BJ20: =IF(SUM(BD20:BI20)=0,"",AVERAGE(BD20:BI20)) ->  | BV20: =IF(SUM(BP20:BU20)=0,"",AVERAGE(BP20:BU20)) ->  | CC20: =IF(BV20="","",AVERAGE($BV$10:BV20)) ->  | CE20: =IF(BV20="","",_xlfn.NORM.DIST(BV20,AVERAGE($BV$10:$BV$5000),Dashboard!$L$36,FALSE)) ->  | CK20: =IF(BV20="","",_xlfn.NORM.DIST(BV20,AVERAGE(BV20:BW5010),Dashboard!$L$36,FALSE)) -> 
AX21: =IF(SUM(AR21:AW21)=0,"",AVERAGE(AR21:AW21)) ->  | BJ21: =IF(SUM(BD21:BI21)=0,"",AVERAGE(BD21:BI21)) ->  | BV21: =IF(SUM(BP21:BU21)=0,"",AVERAGE(BP21:BU21)) ->  | CC21: =IF(BV21="","",AVERAGE($BV$10:BV21)) ->  | CE21: =IF(BV21="","",_xlfn.NORM.DIST(BV21,AVERAGE($BV$10:$BV$5000),Dashboard!$L$36,FALSE)) ->  | CK21: =IF(BV21="","",_xlfn.NORM.DIST(BV21,AVERAGE(BV21:BW5011),Dashboard!$L$36,FALSE)) -> 
CC22: =IF(BV22="","",AVERAGE($BV$10:BV22)) ->  | CE22: =IF(BV22="","",_xlfn.NORM.DIST(BV22,AVERAGE($BV$10:$BV$5000),Dashboard!$L$36,FALSE)) ->  | CK22: =IF(BV22="","",_xlfn.NORM.DIST(BV22,AVERAGE(BV22:BW5012),Dashboard!$L$36,FALSE)) -> 
CC23: =IF(BV23="","",AVERAGE($BV$10:BV23)) ->  | CE23: =IF(BV23="","",_xlfn.NORM.DIST(BV23,AVERAGE($BV$10:$BV$5000),Dashboard!$L$36,FALSE)) ->  | CK23: =IF(BV23="","",_xlfn.NORM.DIST(BV23,AVERAGE(BV23:BW5013),Dashboard!$L$36,FALSE)) -> 
CC24: =IF(BV24="","",AVERAGE($BV$10:BV24)) ->  | CE24: =IF(BV24="","",_xlfn.NORM.DIST(BV24,AVERAGE($BV$10:$BV$5000),Dashboard!$L$36,FALSE)) ->  | CK24: =IF(BV24="","",_xlfn.NORM.DIST(BV24,AVERAGE(BV24:BW5014),Dashboard!$L$36,FALSE)) -> 
CC25: =IF(BV25="","",AVERAGE($BV$10:BV25)) ->  | CE25: =IF(BV25="","",_xlfn.NORM.DIST(BV25,AVERAGE($BV$10:$BV$5000),Dashboard!$L$36,FALSE)) ->  | CK25: =IF(BV25="","",_xlfn.NORM.DIST(BV25,AVERAGE(BV25:BW5015),Dashboard!$L$36,FALSE)) -> 
CC26: =IF(BV26="","",AVERAGE($BV$10:BV26)) ->  | CE26: =IF(BV26="","",_xlfn.NORM.DIST(BV26,AVERAGE($BV$10:$BV$5000),Dashboard!$L$36,FALSE)) ->  | CK26: =IF(BV26="","",_xlfn.NORM.DIST(BV26,AVERAGE(BV26:BW5016),Dashboard!$L$36,FALSE)) -> 
CC27: =IF(BV27="","",AVERAGE($BV$10:BV27)) ->  | CE27: =IF(BV27="","",_xlfn.NORM.DIST(BV27,AVERAGE($BV$10:$BV$5000),Dashboard!$L$36,FALSE)) ->  | CK27: =IF(BV27="","",_xlfn.NORM.DIST(BV27,AVERAGE(BV27:BW5017),Dashboard!$L$36,FALSE)) -> 
CC28: =IF(BV28="","",AVERAGE($BV$10:BV28)) ->  | CE28: =IF(BV28="","",_xlfn.NORM.DIST(BV28,AVERAGE($BV$10:$BV$5000),Dashboard!$L$36,FALSE)) ->  | CK28: =IF(BV28="","",_xlfn.NORM.DIST(BV28,AVERAGE(BV28:BW5018),Dashboard!$L$36,FALSE)) -> 
CC29: =IF(BV29="","",AVERAGE($BV$10:BV29)) ->  | CE29: =IF(BV29="","",_xlfn.NORM.DIST(BV29,AVERAGE($BV$10:$BV$5000),Dashboard!$L$36,FALSE)) ->  | CK29: =IF(BV29="","",_xlfn.NORM.DIST(BV29,AVERAGE(BV29:BW5019),Dashboard!$L$36,FALSE)) -> 
CC30: =IF(BV30="","",AVERAGE($BV$10:BV30)) ->  | CE30: =IF(BV30="","",_xlfn.NORM.DIST(BV30,AVERAGE($BV$10:$BV$5000),Dashboard!$L$36,FALSE)) ->  | CK30: =IF(BV30="","",_xlfn.NORM.DIST(BV30,AVERAGE(BV30:BW5020),Dashboard!$L$36,FALSE)) -> 
CC31: =IF(BV31="","",AVERAGE($BV$10:BV31)) ->  | CE31: =IF(BV31="","",_xlfn.NORM.DIST(BV31,AVERAGE($BV$10:$BV$5000),Dashboard!$L$36,FALSE)) ->  | CK31: =IF(BV31="","",_xlfn.NORM.DIST(BV31,AVERAGE(BV31:BW5021),Dashboard!$L$36,FALSE)) -> 
CC32: =IF(BV32="","",AVERAGE($BV$10:BV32)) ->  | CE32: =IF(BV32="","",_xlfn.NORM.DIST(BV32,AVERAGE($BV$10:$BV$5000),Dashboard!$L$36,FALSE)) ->  | CK32: =IF(BV32="","",_xlfn.NORM.DIST(BV32,AVERAGE(BV32:BW5022),Dashboard!$L$36,FALSE)) -> 
CC33: =IF(BV33="","",AVERAGE($BV$10:BV33)) ->  | CE33: =IF(BV33="","",_xlfn.NORM.DIST(BV33,AVERAGE($BV$10:$BV$5000),Dashboard!$L$36,FALSE)) ->  | CK33: =IF(BV33="","",_xlfn.NORM.DIST(BV33,AVERAGE(BV33:BW5023),Dashboard!$L$36,FALSE)) -> 
CC34: =IF(BV34="","",AVERAGE($BV$10:BV34)) ->  | CE34: =IF(BV34="","",_xlfn.NORM.DIST(BV34,AVERAGE($BV$10:$BV$5000),Dashboard!$L$36,FALSE)) ->  | CK34: =IF(BV34="","",_xlfn.NORM.DIST(BV34,AVERAGE(BV34:BW5024),Dashboard!$L$36,FALSE)) -> 
CC35: =IF(BV35="","",AVERAGE($BV$10:BV35)) ->  | CE35: =IF(BV35="","",_xlfn.NORM.DIST(BV35,AVERAGE($BV$10:$BV$5000),Dashboard!$L$36,FALSE)) ->  | CK35: =IF(BV35="","",_xlfn.NORM.DIST(BV35,AVERAGE(BV35:BW5025),Dashboard!$L$36,FALSE)) -> 
CC36: =IF(BV36="","",AVERAGE($BV$10:BV36)) ->  | CE36: =IF(BV36="","",_xlfn.NORM.DIST(BV36,AVERAGE($BV$10:$BV$5000),Dashboard!$L$36,FALSE)) ->  | CK36: =IF(BV36="","",_xlfn.NORM.DIST(BV36,AVERAGE(BV36:BW5026),Dashboard!$L$36,FALSE)) -> 
CC37: =IF(BV37="","",AVERAGE($BV$10:BV37)) ->  | CE37: =IF(BV37="","",_xlfn.NORM.DIST(BV37,AVERAGE($BV$10:$BV$5000),Dashboard!$L$36,FALSE)) ->  | CK37: =IF(BV37="","",_xlfn.NORM.DIST(BV37,AVERAGE(BV37:BW5027),Dashboard!$L$36,FALSE)) -> 
CC38: =IF(BV38="","",AVERAGE($BV$10:BV38)) ->  | CE38: =IF(BV38="","",_xlfn.NORM.DIST(BV38,AVERAGE($BV$10:$BV$5000),Dashboard!$L$36,FALSE)) ->  | CK38: =IF(BV38="","",_xlfn.NORM.DIST(BV38,AVERAGE(BV38:BW5028),Dashboard!$L$36,FALSE)) -> 
CC39: =IF(BV39="","",AVERAGE($BV$10:BV39)) ->  | CE39: =IF(BV39="","",_xlfn.NORM.DIST(BV39,AVERAGE($BV$10:$BV$5000),Dashboard!$L$36,FALSE)) ->  | CK39: =IF(BV39="","",_xlfn.NORM.DIST(BV39,AVERAGE(BV39:BW5029),Dashboard!$L$36,FALSE)) -> 
CC40: =IF(BV40="","",AVERAGE($BV$10:BV40)) ->  | CE40: =IF(BV40="","",_xlfn.NORM.DIST(BV40,AVERAGE($BV$10:$BV$5000),Dashboard!$L$36,FALSE)) ->  | CK40: =IF(BV40="","",_xlfn.NORM.DIST(BV40,AVERAGE(BV40:BW5030),Dashboard!$L$36,FALSE)) -> 
CC41: =IF(BV41="","",AVERAGE($BV$10:BV41)) ->  | CE41: =IF(BV41="","",_xlfn.NORM.DIST(BV41,AVERAGE($BV$10:$BV$5000),Dashboard!$L$36,FALSE)) ->  | CK41: =IF(BV41="","",_xlfn.NORM.DIST(BV41,AVERAGE(BV41:BW5031),Dashboard!$L$36,FALSE)) -> 
CA42: =IF(BV42="","",BV42-AJ42) ->  | CC42: =IF(BV42="","",AVERAGE($BV$10:BV42)) ->  | CE42: =IF(BV42="","",_xlfn.NORM.DIST(BV42,AVERAGE($BV$10:$BV$5000),Dashboard!$L$36,FALSE)) ->  | CK42: =IF(BV42="","",_xlfn.NORM.DIST(BV42,AVERAGE(BV42:BW5032),Dashboard!$L$36,FALSE)) -> 
CC43: =IF(BV43="","",AVERAGE($BV$10:BV43)) ->  | CE43: =IF(BV43="","",_xlfn.NORM.DIST(BV43,AVERAGE($BV$10:$BV$5000),Dashboard!$L$36,FALSE)) ->  | CK43: =IF(BV43="","",_xlfn.NORM.DIST(BV43,AVERAGE(BV43:BW5033),Dashboard!$L$36,FALSE)) -> 
CC44: =IF(BV44="","",AVERAGE($BV$10:BV44)) ->  | CE44: =IF(BV44="","",_xlfn.NORM.DIST(BV44,AVERAGE($BV$10:$BV$5000),Dashboard!$L$36,FALSE)) ->  | CK44: =IF(BV44="","",_xlfn.NORM.DIST(BV44,AVERAGE(BV44:BW5034),Dashboard!$L$36,FALSE)) -> 
CC45: =IF(BV45="","",AVERAGE($BV$10:BV45)) ->  | CE45: =IF(BV45="","",_xlfn.NORM.DIST(BV45,AVERAGE($BV$10:$BV$5000),Dashboard!$L$36,FALSE)) ->  | CK45: =IF(BV45="","",_xlfn.NORM.DIST(BV45,AVERAGE(BV45:BW5035),Dashboard!$L$36,FALSE)) -> 
CC46: =IF(BV46="","",AVERAGE($BV$10:BV46)) ->  | CE46: =IF(BV46="","",_xlfn.NORM.DIST(BV46,AVERAGE($BV$10:$BV$5000),Dashboard!$L$36,FALSE)) ->  | CK46: =IF(BV46="","",_xlfn.NORM.DIST(BV46,AVERAGE(BV46:BW5036),Dashboard!$L$36,FALSE)) -> 
CC47: =IF(BV47="","",AVERAGE($BV$10:BV47)) ->  | CE47: =IF(BV47="","",_xlfn.NORM.DIST(BV47,AVERAGE($BV$10:$BV$5000),Dashboard!$L$36,FALSE)) ->  | CK47: =IF(BV47="","",_xlfn.NORM.DIST(BV47,AVERAGE(BV47:BW5037),Dashboard!$L$36,FALSE)) -> 
CC48: =IF(BV48="","",AVERAGE($BV$10:BV48)) ->  | CE48: =IF(BV48="","",_xlfn.NORM.DIST(BV48,AVERAGE($BV$10:$BV$5000),Dashboard!$L$36,FALSE)) ->  | CK48: =IF(BV48="","",_xlfn.NORM.DIST(BV48,AVERAGE(BV48:BW5038),Dashboard!$L$36,FALSE)) -> 
CC49: =IF(BV49="","",AVERAGE($BV$10:BV49)) ->  | CE49: =IF(BV49="","",_xlfn.NORM.DIST(BV49,AVERAGE($BV$10:$BV$5000),Dashboard!$L$36,FALSE)) ->  | CK49: =IF(BV49="","",_xlfn.NORM.DIST(BV49,AVERAGE(BV49:BW5039),Dashboard!$L$36,FALSE)) -> 
CC50: =IF(BV50="","",AVERAGE($BV$10:BV50)) ->  | CE50: =IF(BV50="","",_xlfn.NORM.DIST(BV50,AVERAGE($BV$10:$BV$5000),Dashboard!$L$36,FALSE)) ->  | CK50: =IF(BV50="","",_xlfn.NORM.DIST(BV50,AVERAGE(BV50:BW5040),Dashboard!$L$36,FALSE)) -> 
CC51: =IF(BV51="","",AVERAGE($BV$10:BV51)) ->  | CE51: =IF(BV51="","",_xlfn.NORM.DIST(BV51,AVERAGE($BV$10:$BV$5000),Dashboard!$L$36,FALSE)) ->  | CK51: =IF(BV51="","",_xlfn.NORM.DIST(BV51,AVERAGE(BV51:BW5041),Dashboard!$L$36,FALSE)) -> 
CC52: =IF(BV52="","",AVERAGE($BV$10:BV52)) ->  | CE52: =IF(BV52="","",_xlfn.NORM.DIST(BV52,AVERAGE($BV$10:$BV$5000),Dashboard!$L$36,FALSE)) ->  | CK52: =IF(BV52="","",_xlfn.NORM.DIST(BV52,AVERAGE(BV52:BW5042),Dashboard!$L$36,FALSE)) -> 
CC53: =IF(BV53="","",AVERAGE($BV$10:BV53)) ->  | CE53: =IF(BV53="","",_xlfn.NORM.DIST(BV53,AVERAGE($BV$10:$BV$5000),Dashboard!$L$36,FALSE)) ->  | CK53: =IF(BV53="","",_xlfn.NORM.DIST(BV53,AVERAGE(BV53:BW5043),Dashboard!$L$36,FALSE)) -> 
CC54: =IF(BV54="","",AVERAGE($BV$10:BV54)) ->  | CE54: =IF(BV54="","",_xlfn.NORM.DIST(BV54,AVERAGE($BV$10:$BV$5000),Dashboard!$L$36,FALSE)) ->  | CK54: =IF(BV54="","",_xlfn.NORM.DIST(BV54,AVERAGE(BV54:BW5044),Dashboard!$L$36,FALSE)) -> 
CC55: =IF(BV55="","",AVERAGE($BV$10:BV55)) ->  | CE55: =IF(BV55="","",_xlfn.NORM.DIST(BV55,AVERAGE($BV$10:$BV$5000),Dashboard!$L$36,FALSE)) ->  | CK55: =IF(BV55="","",_xlfn.NORM.DIST(BV55,AVERAGE(BV55:BW5045),Dashboard!$L$36,FALSE)) -> 
CC56: =IF(BV56="","",AVERAGE($BV$10:BV56)) ->  | CE56: =IF(BV56="","",_xlfn.NORM.DIST(BV56,AVERAGE($BV$10:$BV$5000),Dashboard!$L$36,FALSE)) ->  | CK56: =IF(BV56="","",_xlfn.NORM.DIST(BV56,AVERAGE(BV56:BW5046),Dashboard!$L$36,FALSE)) -> 
CC57: =IF(BV57="","",AVERAGE($BV$10:BV57)) ->  | CE57: =IF(BV57="","",_xlfn.NORM.DIST(BV57,AVERAGE($BV$10:$BV$5000),Dashboard!$L$36,FALSE)) ->  | CK57: =IF(BV57="","",_xlfn.NORM.DIST(BV57,AVERAGE(BV57:BW5047),Dashboard!$L$36,FALSE)) -> 
CC58: =IF(BV58="","",AVERAGE($BV$10:BV58)) ->  | CE58: =IF(BV58="","",_xlfn.NORM.DIST(BV58,AVERAGE($BV$10:$BV$5000),Dashboard!$L$36,FALSE)) ->  | CK58: =IF(BV58="","",_xlfn.NORM.DIST(BV58,AVERAGE(BV58:BW5048),Dashboard!$L$36,FALSE)) -> 
CC59: =IF(BV59="","",AVERAGE($BV$10:BV59)) ->  | CE59: =IF(BV59="","",_xlfn.NORM.DIST(BV59,AVERAGE($BV$10:$BV$5000),Dashboard!$L$36,FALSE)) ->  | CK59: =IF(BV59="","",_xlfn.NORM.DIST(BV59,AVERAGE(BV59:BW5049),Dashboard!$L$36,FALSE)) -> 
CC60: =IF(BV60="","",AVERAGE($BV$10:BV60)) ->  | CE60: =IF(BV60="","",_xlfn.NORM.DIST(BV60,AVERAGE($BV$10:$BV$5000),Dashboard!$L$36,FALSE)) ->  | CK60: =IF(BV60="","",_xlfn.NORM.DIST(BV60,AVERAGE(BV60:BW5050),Dashboard!$L$36,FALSE)) -> 
CC61: =IF(BV61="","",AVERAGE($BV$10:BV61)) ->  | CE61: =IF(BV61="","",_xlfn.NORM.DIST(BV61,AVERAGE($BV$10:$BV$5000),Dashboard!$L$36,FALSE)) ->  | CK61: =IF(BV61="","",_xlfn.NORM.DIST(BV61,AVERAGE(BV61:BW5051),Dashboard!$L$36,FALSE)) -> 
CC62: =IF(BV62="","",AVERAGE($BV$10:BV62)) ->  | CE62: =IF(BV62="","",_xlfn.NORM.DIST(BV62,AVERAGE($BV$10:$BV$5000),Dashboard!$L$36,FALSE)) ->  | CK62: =IF(BV62="","",_xlfn.NORM.DIST(BV62,AVERAGE(BV62:BW5052),Dashboard!$L$36,FALSE)) -> 
CC63: =IF(BV63="","",AVERAGE($BV$10:BV63)) ->  | CE63: =IF(BV63="","",_xlfn.NORM.DIST(BV63,AVERAGE($BV$10:$BV$5000),Dashboard!$L$36,FALSE)) ->  | CK63: =IF(BV63="","",_xlfn.NORM.DIST(BV63,AVERAGE(BV63:BW5053),Dashboard!$L$36,FALSE)) -> 
CC64: =IF(BV64="","",AVERAGE($BV$10:BV64)) ->  | CE64: =IF(BV64="","",_xlfn.NORM.DIST(BV64,AVERAGE($BV$10:$BV$5000),Dashboard!$L$36,FALSE)) ->  | CK64: =IF(BV64="","",_xlfn.NORM.DIST(BV64,AVERAGE(BV64:BW5054),Dashboard!$L$36,FALSE)) -> 
CC65: =IF(BV65="","",AVERAGE($BV$10:BV65)) ->  | CE65: =IF(BV65="","",_xlfn.NORM.DIST(BV65,AVERAGE($BV$10:$BV$5000),Dashboard!$L$36,FALSE)) ->  | CK65: =IF(BV65="","",_xlfn.NORM.DIST(BV65,AVERAGE(BV65:BW5055),Dashboard!$L$36,FALSE)) -> 
CC66: =IF(BV66="","",AVERAGE($BV$10:BV66)) ->  | CE66: =IF(BV66="","",_xlfn.NORM.DIST(BV66,AVERAGE($BV$10:$BV$5000),Dashboard!$L$36,FALSE)) ->  | CK66: =IF(BV66="","",_xlfn.NORM.DIST(BV66,AVERAGE(BV66:BW5056),Dashboard!$L$36,FALSE)) -> 
CC67: =IF(BV67="","",AVERAGE($BV$10:BV67)) ->  | CE67: =IF(BV67="","",_xlfn.NORM.DIST(BV67,AVERAGE($BV$10:$BV$5000),Dashboard!$L$36,FALSE)) ->  | CK67: =IF(BV67="","",_xlfn.NORM.DIST(BV67,AVERAGE(BV67:BW5057),Dashboard!$L$36,FALSE)) -> 
CC68: =IF(BV68="","",AVERAGE($BV$10:BV68)) ->  | CE68: =IF(BV68="","",_xlfn.NORM.DIST(BV68,AVERAGE($BV$10:$BV$5000),Dashboard!$L$36,FALSE)) ->  | CK68: =IF(BV68="","",_xlfn.NORM.DIST(BV68,AVERAGE(BV68:BW5058),Dashboard!$L$36,FALSE)) -> 
CC69: =IF(BV69="","",AVERAGE($BV$10:BV69)) ->  | CE69: =IF(BV69="","",_xlfn.NORM.DIST(BV69,AVERAGE($BV$10:$BV$5000),Dashboard!$L$36,FALSE)) ->  | CK69: =IF(BV69="","",_xlfn.NORM.DIST(BV69,AVERAGE(BV69:BW5059),Dashboard!$L$36,FALSE)) -> 
CC70: =IF(BV70="","",AVERAGE($BV$10:BV70)) ->  | CE70: =IF(BV70="","",_xlfn.NORM.DIST(BV70,AVERAGE($BV$10:$BV$5000),Dashboard!$L$36,FALSE)) ->  | CK70: =IF(BV70="","",_xlfn.NORM.DIST(BV70,AVERAGE(BV70:BW5060),Dashboard!$L$36,FALSE)) -> 
CC71: =IF(BV71="","",AVERAGE($BV$10:BV71)) ->  | CE71: =IF(BV71="","",_xlfn.NORM.DIST(BV71,AVERAGE($BV$10:$BV$5000),Dashboard!$L$36,FALSE)) ->  | CK71: =IF(BV71="","",_xlfn.NORM.DIST(BV71,AVERAGE(BV71:BW5061),Dashboard!$L$36,FALSE)) -> 
CC72: =IF(BV72="","",AVERAGE($BV$10:BV72)) ->  | CE72: =IF(BV72="","",_xlfn.NORM.DIST(BV72,AVERAGE($BV$10:$BV$5000),Dashboard!$L$36,FALSE)) ->  | CK72: =IF(BV72="","",_xlfn.NORM.DIST(BV72,AVERAGE(BV72:BW5062),Dashboard!$L$36,FALSE)) -> 
CC73: =IF(BV73="","",AVERAGE($BV$10:BV73)) ->  | CE73: =IF(BV73="","",_xlfn.NORM.DIST(BV73,AVERAGE($BV$10:$BV$5000),Dashboard!$L$36,FALSE)) ->  | CK73: =IF(BV73="","",_xlfn.NORM.DIST(BV73,AVERAGE(BV73:BW5063),Dashboard!$L$36,FALSE)) -> 
CA74: =IF(BV74="","",BV74-AJ74) ->  | CC74: =IF(BV74="","",AVERAGE($BV$10:BV74)) ->  | CE74: =IF(BV74="","",_xlfn.NORM.DIST(BV74,AVERAGE($BV$10:$BV$5000),Dashboard!$L$36,FALSE)) ->  | CK74: =IF(BV74="","",_xlfn.NORM.DIST(BV74,AVERAGE(BV74:BW5064),Dashboard!$L$36,FALSE)) -> 
CC75: =IF(BV75="","",AVERAGE($BV$10:BV75)) ->  | CE75: =IF(BV75="","",_xlfn.NORM.DIST(BV75,AVERAGE($BV$10:$BV$5000),Dashboard!$L$36,FALSE)) ->  | CK75: =IF(BV75="","",_xlfn.NORM.DIST(BV75,AVERAGE(BV75:BW5065),Dashboard!$L$36,FALSE)) -> 
CC76: =IF(BV76="","",AVERAGE($BV$10:BV76)) ->  | CE76: =IF(BV76="","",_xlfn.NORM.DIST(BV76,AVERAGE($BV$10:$BV$5000),Dashboard!$L$36,FALSE)) ->  | CK76: =IF(BV76="","",_xlfn.NORM.DIST(BV76,AVERAGE(BV76:BW5066),Dashboard!$L$36,FALSE)) -> 
CC77: =IF(BV77="","",AVERAGE($BV$10:BV77)) ->  | CE77: =IF(BV77="","",_xlfn.NORM.DIST(BV77,AVERAGE($BV$10:$BV$5000),Dashboard!$L$36,FALSE)) ->  | CK77: =IF(BV77="","",_xlfn.NORM.DIST(BV77,AVERAGE(BV77:BW5067),Dashboard!$L$36,FALSE)) -> 
CC78: =IF(BV78="","",AVERAGE($BV$10:BV78)) ->  | CE78: =IF(BV78="","",_xlfn.NORM.DIST(BV78,AVERAGE($BV$10:$BV$5000),Dashboard!$L$36,FALSE)) ->  | CK78: =IF(BV78="","",_xlfn.NORM.DIST(BV78,AVERAGE(BV78:BW5068),Dashboard!$L$36,FALSE)) -> 
CC79: =IF(BV79="","",AVERAGE($BV$10:BV79)) ->  | CE79: =IF(BV79="","",_xlfn.NORM.DIST(BV79,AVERAGE($BV$10:$BV$5000),Dashboard!$L$36,FALSE)) ->  | CK79: =IF(BV79="","",_xlfn.NORM.DIST(BV79,AVERAGE(BV79:BW5069),Dashboard!$L$36,FALSE)) -> 
CC80: =IF(BV80="","",AVERAGE($BV$10:BV80)) ->  | CE80: =IF(BV80="","",_xlfn.NORM.DIST(BV80,AVERAGE($BV$10:$BV$5000),Dashboard!$L$36,FALSE)) ->  | CK80: =IF(BV80="","",_xlfn.NORM.DIST(BV80,AVERAGE(BV80:BW5070),Dashboard!$L$36,FALSE)) -> 
CC81: =IF(BV81="","",AVERAGE($BV$10:BV81)) ->  | CE81: =IF(BV81="","",_xlfn.NORM.DIST(BV81,AVERAGE($BV$10:$BV$5000),Dashboard!$L$36,FALSE)) ->  | CK81: =IF(BV81="","",_xlfn.NORM.DIST(BV81,AVERAGE(BV81:BW5071),Dashboard!$L$36,FALSE)) -> 
CC82: =IF(BV82="","",AVERAGE($BV$10:BV82)) ->  | CE82: =IF(BV82="","",_xlfn.NORM.DIST(BV82,AVERAGE($BV$10:$BV$5000),Dashboard!$L$36,FALSE)) ->  | CK82: =IF(BV82="","",_xlfn.NORM.DIST(BV82,AVERAGE(BV82:BW5072),Dashboard!$L$36,FALSE)) -> 
CC83: =IF(BV83="","",AVERAGE($BV$10:BV83)) ->  | CE83: =IF(BV83="","",_xlfn.NORM.DIST(BV83,AVERAGE($BV$10:$BV$5000),Dashboard!$L$36,FALSE)) ->  | CK83: =IF(BV83="","",_xlfn.NORM.DIST(BV83,AVERAGE(BV83:BW5073),Dashboard!$L$36,FALSE)) -> 
CC84: =IF(BV84="","",AVERAGE($BV$10:BV84)) ->  | CE84: =IF(BV84="","",_xlfn.NORM.DIST(BV84,AVERAGE($BV$10:$BV$5000),Dashboard!$L$36,FALSE)) ->  | CK84: =IF(BV84="","",_xlfn.NORM.DIST(BV84,AVERAGE(BV84:BW5074),Dashboard!$L$36,FALSE)) -> 
AX85: =IF(SUM(AR85:AW85)=0,"",AVERAGE(AR85:AW85)) ->  | BJ85: =IF(SUM(BD85:BI85)=0,"",AVERAGE(BD85:BI85)) ->  | BV85: =IF(SUM(BP85:BU85)=0,"",AVERAGE(BP85:BU85)) ->  | CA85: =IF(BV85="","",BV85-AJ85) ->  | CC85: =IF(BV85="","",AVERAGE($BV$10:BV85)) ->  | CE85: =IF(BV85="","",_xlfn.NORM.DIST(BV85,AVERAGE($BV$10:$BV$5000),Dashboard!$L$36,FALSE)) ->  | CK85: =IF(BV85="","",_xlfn.NORM.DIST(BV85,AVERAGE(BV85:BW5075),Dashboard!$L$36,FALSE)) -> 
CC86: =IF(BV86="","",AVERAGE($BV$10:BV86)) ->  | CE86: =IF(BV86="","",_xlfn.NORM.DIST(BV86,AVERAGE($BV$10:$BV$5000),Dashboard!$L$36,FALSE)) ->  | CK86: =IF(BV86="","",_xlfn.NORM.DIST(BV86,AVERAGE(BV86:BW5076),Dashboard!$L$36,FALSE)) -> 
CC87: =IF(BV87="","",AVERAGE($BV$10:BV87)) ->  | CE87: =IF(BV87="","",_xlfn.NORM.DIST(BV87,AVERAGE($BV$10:$BV$5000),Dashboard!$L$36,FALSE)) ->  | CK87: =IF(BV87="","",_xlfn.NORM.DIST(BV87,AVERAGE(BV87:BW5077),Dashboard!$L$36,FALSE)) -> 
CC88: =IF(BV88="","",AVERAGE($BV$10:BV88)) ->  | CE88: =IF(BV88="","",_xlfn.NORM.DIST(BV88,AVERAGE($BV$10:$BV$5000),Dashboard!$L$36,FALSE)) ->  | CK88: =IF(BV88="","",_xlfn.NORM.DIST(BV88,AVERAGE(BV88:BW5078),Dashboard!$L$36,FALSE)) -> 
CC89: =IF(BV89="","",AVERAGE($BV$10:BV89)) ->  | CE89: =IF(BV89="","",_xlfn.NORM.DIST(BV89,AVERAGE($BV$10:$BV$5000),Dashboard!$L$36,FALSE)) ->  | CK89: =IF(BV89="","",_xlfn.NORM.DIST(BV89,AVERAGE(BV89:BW5079),Dashboard!$L$36,FALSE)) -> 
CC90: =IF(BV90="","",AVERAGE($BV$10:BV90)) ->  | CE90: =IF(BV90="","",_xlfn.NORM.DIST(BV90,AVERAGE($BV$10:$BV$5000),Dashboard!$L$36,FALSE)) ->  | CK90: =IF(BV90="","",_xlfn.NORM.DIST(BV90,AVERAGE(BV90:BW5080),Dashboard!$L$36,FALSE)) -> 
CC91: =IF(BV91="","",AVERAGE($BV$10:BV91)) ->  | CE91: =IF(BV91="","",_xlfn.NORM.DIST(BV91,AVERAGE($BV$10:$BV$5000),Dashboard!$L$36,FALSE)) ->  | CK91: =IF(BV91="","",_xlfn.NORM.DIST(BV91,AVERAGE(BV91:BW5081),Dashboard!$L$36,FALSE)) -> 
CC92: =IF(BV92="","",AVERAGE($BV$10:BV92)) ->  | CE92: =IF(BV92="","",_xlfn.NORM.DIST(BV92,AVERAGE($BV$10:$BV$5000),Dashboard!$L$36,FALSE)) ->  | CK92: =IF(BV92="","",_xlfn.NORM.DIST(BV92,AVERAGE(BV92:BW5082),Dashboard!$L$36,FALSE)) -> 
CC93: =IF(BV93="","",AVERAGE($BV$10:BV93)) ->  | CE93: =IF(BV93="","",_xlfn.NORM.DIST(BV93,AVERAGE($BV$10:$BV$5000),Dashboard!$L$36,FALSE)) ->  | CK93: =IF(BV93="","",_xlfn.NORM.DIST(BV93,AVERAGE(BV93:BW5083),Dashboard!$L$36,FALSE)) -> 
CC94: =IF(BV94="","",AVERAGE($BV$10:BV94)) ->  | CE94: =IF(BV94="","",_xlfn.NORM.DIST(BV94,AVERAGE($BV$10:$BV$5000),Dashboard!$L$36,FALSE)) ->  | CK94: =IF(BV94="","",_xlfn.NORM.DIST(BV94,AVERAGE(BV94:BW5084),Dashboard!$L$36,FALSE)) -> 
CC95: =IF(BV95="","",AVERAGE($BV$10:BV95)) ->  | CE95: =IF(BV95="","",_xlfn.NORM.DIST(BV95,AVERAGE($BV$10:$BV$5000),Dashboard!$L$36,FALSE)) ->  | CK95: =IF(BV95="","",_xlfn.NORM.DIST(BV95,AVERAGE(BV95:BW5085),Dashboard!$L$36,FALSE)) -> 
CC96: =IF(BV96="","",AVERAGE($BV$10:BV96)) ->  | CE96: =IF(BV96="","",_xlfn.NORM.DIST(BV96,AVERAGE($BV$10:$BV$5000),Dashboard!$L$36,FALSE)) ->  | CK96: =IF(BV96="","",_xlfn.NORM.DIST(BV96,AVERAGE(BV96:BW5086),Dashboard!$L$36,FALSE)) -> 
CC97: =IF(BV97="","",AVERAGE($BV$10:BV97)) ->  | CE97: =IF(BV97="","",_xlfn.NORM.DIST(BV97,AVERAGE($BV$10:$BV$5000),Dashboard!$L$36,FALSE)) ->  | CK97: =IF(BV97="","",_xlfn.NORM.DIST(BV97,AVERAGE(BV97:BW5087),Dashboard!$L$36,FALSE)) -> 
CC98: =IF(BV98="","",AVERAGE($BV$10:BV98)) ->  | CE98: =IF(BV98="","",_xlfn.NORM.DIST(BV98,AVERAGE($BV$10:$BV$5000),Dashboard!$L$36,FALSE)) ->  | CK98: =IF(BV98="","",_xlfn.NORM.DIST(BV98,AVERAGE(BV98:BW5088),Dashboard!$L$36,FALSE)) -> 
CC99: =IF(BV99="","",AVERAGE($BV$10:BV99)) ->  | CE99: =IF(BV99="","",_xlfn.NORM.DIST(BV99,AVERAGE($BV$10:$BV$5000),Dashboard!$L$36,FALSE)) ->  | CK99: =IF(BV99="","",_xlfn.NORM.DIST(BV99,AVERAGE(BV99:BW5089),Dashboard!$L$36,FALSE)) -> 
CC100: =IF(BV100="","",AVERAGE($BV$10:BV100)) ->  | CE100: =IF(BV100="","",_xlfn.NORM.DIST(BV100,AVERAGE($BV$10:$BV$5000),Dashboard!$L$36,FALSE)) ->  | CK100: =IF(BV100="","",_xlfn.NORM.DIST(BV100,AVERAGE(BV100:BW5090),Dashboard!$L$36,FALSE)) -> 
CC101: =IF(BV101="","",AVERAGE($BV$10:BV101)) ->  | CE101: =IF(BV101="","",_xlfn.NORM.DIST(BV101,AVERAGE($BV$10:$BV$5000),Dashboard!$L$36,FALSE)) ->  | CK101: =IF(BV101="","",_xlfn.NORM.DIST(BV101,AVERAGE(BV101:BW5091),Dashboard!$L$36,FALSE)) -> 
CC102: =IF(BV102="","",AVERAGE($BV$10:BV102)) ->  | CE102: =IF(BV102="","",_xlfn.NORM.DIST(BV102,AVERAGE($BV$10:$BV$5000),Dashboard!$L$36,FALSE)) ->  | CK102: =IF(BV102="","",_xlfn.NORM.DIST(BV102,AVERAGE(BV102:BW5092),Dashboard!$L$36,FALSE)) -> 
CC103: =IF(BV103="","",AVERAGE($BV$10:BV103)) ->  | CE103: =IF(BV103="","",_xlfn.NORM.DIST(BV103,AVERAGE($BV$10:$BV$5000),Dashboard!$L$36,FALSE)) ->  | CK103: =IF(BV103="","",_xlfn.NORM.DIST(BV103,AVERAGE(BV103:BW5093),Dashboard!$L$36,FALSE)) -> 
CC104: =IF(BV104="","",AVERAGE($BV$10:BV104)) ->  | CE104: =IF(BV104="","",_xlfn.NORM.DIST(BV104,AVERAGE($BV$10:$BV$5000),Dashboard!$L$36,FALSE)) ->  | CK104: =IF(BV104="","",_xlfn.NORM.DIST(BV104,AVERAGE(BV104:BW5094),Dashboard!$L$36,FALSE)) -> 
CC105: =IF(BV105="","",AVERAGE($BV$10:BV105)) ->  | CE105: =IF(BV105="","",_xlfn.NORM.DIST(BV105,AVERAGE($BV$10:$BV$5000),Dashboard!$L$36,FALSE)) ->  | CK105: =IF(BV105="","",_xlfn.NORM.DIST(BV105,AVERAGE(BV105:BW5095),Dashboard!$L$36,FALSE)) -> 
CC106: =IF(BV106="","",AVERAGE($BV$10:BV106)) ->  | CE106: =IF(BV106="","",_xlfn.NORM.DIST(BV106,AVERAGE($BV$10:$BV$5000),Dashboard!$L$36,FALSE)) ->  | CK106: =IF(BV106="","",_xlfn.NORM.DIST(BV106,AVERAGE(BV106:BW5096),Dashboard!$L$36,FALSE)) -> 
CC107: =IF(BV107="","",AVERAGE($BV$10:BV107)) ->  | CE107: =IF(BV107="","",_xlfn.NORM.DIST(BV107,AVERAGE($BV$10:$BV$5000),Dashboard!$L$36,FALSE)) ->  | CK107: =IF(BV107="","",_xlfn.NORM.DIST(BV107,AVERAGE(BV107:BW5097),Dashboard!$L$36,FALSE)) -> 
CC108: =IF(BV108="","",AVERAGE($BV$10:BV108)) ->  | CE108: =IF(BV108="","",_xlfn.NORM.DIST(BV108,AVERAGE($BV$10:$BV$5000),Dashboard!$L$36,FALSE)) ->  | CK108: =IF(BV108="","",_xlfn.NORM.DIST(BV108,AVERAGE(BV108:BW5098),Dashboard!$L$36,FALSE)) -> 
CC109: =IF(BV109="","",AVERAGE($BV$10:BV109)) ->  | CE109: =IF(BV109="","",_xlfn.NORM.DIST(BV109,AVERAGE($BV$10:$BV$5000),Dashboard!$L$36,FALSE)) ->  | CK109: =IF(BV109="","",_xlfn.NORM.DIST(BV109,AVERAGE(BV109:BW5099),Dashboard!$L$36,FALSE)) -> 
CC110: =IF(BV110="","",AVERAGE($BV$10:BV110)) ->  | CE110: =IF(BV110="","",_xlfn.NORM.DIST(BV110,AVERAGE($BV$10:$BV$5000),Dashboard!$L$36,FALSE)) ->  | CK110: =IF(BV110="","",_xlfn.NORM.DIST(BV110,AVERAGE(BV110:BW5100),Dashboard!$L$36,FALSE)) -> 
CC111: =IF(BV111="","",AVERAGE($BV$10:BV111)) ->  | CE111: =IF(BV111="","",_xlfn.NORM.DIST(BV111,AVERAGE($BV$10:$BV$5000),Dashboard!$L$36,FALSE)) ->  | CK111: =IF(BV111="","",_xlfn.NORM.DIST(BV111,AVERAGE(BV111:BW5101),Dashboard!$L$36,FALSE)) -> 
CC112: =IF(BV112="","",AVERAGE($BV$10:BV112)) ->  | CE112: =IF(BV112="","",_xlfn.NORM.DIST(BV112,AVERAGE($BV$10:$BV$5000),Dashboard!$L$36,FALSE)) ->  | CK112: =IF(BV112="","",_xlfn.NORM.DIST(BV112,AVERAGE(BV112:BW5102),Dashboard!$L$36,FALSE)) -> 
CC113: =IF(BV113="","",AVERAGE($BV$10:BV113)) ->  | CE113: =IF(BV113="","",_xlfn.NORM.DIST(BV113,AVERAGE($BV$10:$BV$5000),Dashboard!$L$36,FALSE)) ->  | CK113: =IF(BV113="","",_xlfn.NORM.DIST(BV113,AVERAGE(BV113:BW5103),Dashboard!$L$36,FALSE)) -> 
CC114: =IF(BV114="","",AVERAGE($BV$10:BV114)) ->  | CE114: =IF(BV114="","",_xlfn.NORM.DIST(BV114,AVERAGE($BV$10:$BV$5000),Dashboard!$L$36,FALSE)) ->  | CK114: =IF(BV114="","",_xlfn.NORM.DIST(BV114,AVERAGE(BV114:BW5104),Dashboard!$L$36,FALSE)) -> 
CC115: =IF(BV115="","",AVERAGE($BV$10:BV115)) ->  | CE115: =IF(BV115="","",_xlfn.NORM.DIST(BV115,AVERAGE($BV$10:$BV$5000),Dashboard!$L$36,FALSE)) ->  | CK115: =IF(BV115="","",_xlfn.NORM.DIST(BV115,AVERAGE(BV115:BW5105),Dashboard!$L$36,FALSE)) -> 
CC116: =IF(BV116="","",AVERAGE($BV$10:BV116)) ->  | CE116: =IF(BV116="","",_xlfn.NORM.DIST(BV116,AVERAGE($BV$10:$BV$5000),Dashboard!$L$36,FALSE)) ->  | CK116: =IF(BV116="","",_xlfn.NORM.DIST(BV116,AVERAGE(BV116:BW5106),Dashboard!$L$36,FALSE)) -> 
CC117: =IF(BV117="","",AVERAGE($BV$10:BV117)) ->  | CE117: =IF(BV117="","",_xlfn.NORM.DIST(BV117,AVERAGE($BV$10:$BV$5000),Dashboard!$L$36,FALSE)) ->  | CK117: =IF(BV117="","",_xlfn.NORM.DIST(BV117,AVERAGE(BV117:BW5107),Dashboard!$L$36,FALSE)) -> 
CC118: =IF(BV118="","",AVERAGE($BV$10:BV118)) ->  | CE118: =IF(BV118="","",_xlfn.NORM.DIST(BV118,AVERAGE($BV$10:$BV$5000),Dashboard!$L$36,FALSE)) ->  | CK118: =IF(BV118="","",_xlfn.NORM.DIST(BV118,AVERAGE(BV118:BW5108),Dashboard!$L$36,FALSE)) -> 
CC119: =IF(BV119="","",AVERAGE($BV$10:BV119)) ->  | CE119: =IF(BV119="","",_xlfn.NORM.DIST(BV119,AVERAGE($BV$10:$BV$5000),Dashboard!$L$36,FALSE)) ->  | CK119: =IF(BV119="","",_xlfn.NORM.DIST(BV119,AVERAGE(BV119:BW5109),Dashboard!$L$36,FALSE)) -> 
CC120: =IF(BV120="","",AVERAGE($BV$10:BV120)) ->  | CE120: =IF(BV120="","",_xlfn.NORM.DIST(BV120,AVERAGE($BV$10:$BV$5000),Dashboard!$L$36,FALSE)) ->  | CK120: =IF(BV120="","",_xlfn.NORM.DIST(BV120,AVERAGE(BV120:BW5110),Dashboard!$L$36,FALSE)) -> 
CC121: =IF(BV121="","",AVERAGE($BV$10:BV121)) ->  | CE121: =IF(BV121="","",_xlfn.NORM.DIST(BV121,AVERAGE($BV$10:$BV$5000),Dashboard!$L$36,FALSE)) ->  | CK121: =IF(BV121="","",_xlfn.NORM.DIST(BV121,AVERAGE(BV121:BW5111),Dashboard!$L$36,FALSE)) -> 
CC122: =IF(BV122="","",AVERAGE($BV$10:BV122)) ->  | CE122: =IF(BV122="","",_xlfn.NORM.DIST(BV122,AVERAGE($BV$10:$BV$5000),Dashboard!$L$36,FALSE)) ->  | CK122: =IF(BV122="","",_xlfn.NORM.DIST(BV122,AVERAGE(BV122:BW5112),Dashboard!$L$36,FALSE)) -> 
CC123: =IF(BV123="","",AVERAGE($BV$10:BV123)) ->  | CE123: =IF(BV123="","",_xlfn.NORM.DIST(BV123,AVERAGE($BV$10:$BV$5000),Dashboard!$L$36,FALSE)) ->  | CK123: =IF(BV123="","",_xlfn.NORM.DIST(BV123,AVERAGE(BV123:BW5113),Dashboard!$L$36,FALSE)) -> 
CC124: =IF(BV124="","",AVERAGE($BV$10:BV124)) ->  | CE124: =IF(BV124="","",_xlfn.NORM.DIST(BV124,AVERAGE($BV$10:$BV$5000),Dashboard!$L$36,FALSE)) ->  | CK124: =IF(BV124="","",_xlfn.NORM.DIST(BV124,AVERAGE(BV124:BW5114),Dashboard!$L$36,FALSE)) -> 
CC125: =IF(BV125="","",AVERAGE($BV$10:BV125)) ->  | CE125: =IF(BV125="","",_xlfn.NORM.DIST(BV125,AVERAGE($BV$10:$BV$5000),Dashboard!$L$36,FALSE)) ->  | CK125: =IF(BV125="","",_xlfn.NORM.DIST(BV125,AVERAGE(BV125:BW5115),Dashboard!$L$36,FALSE)) -> 
CC126: =IF(BV126="","",AVERAGE($BV$10:BV126)) ->  | CE126: =IF(BV126="","",_xlfn.NORM.DIST(BV126,AVERAGE($BV$10:$BV$5000),Dashboard!$L$36,FALSE)) ->  | CK126: =IF(BV126="","",_xlfn.NORM.DIST(BV126,AVERAGE(BV126:BW5116),Dashboard!$L$36,FALSE)) -> 
CC127: =IF(BV127="","",AVERAGE($BV$10:BV127)) ->  | CE127: =IF(BV127="","",_xlfn.NORM.DIST(BV127,AVERAGE($BV$10:$BV$5000),Dashboard!$L$36,FALSE)) ->  | CK127: =IF(BV127="","",_xlfn.NORM.DIST(BV127,AVERAGE(BV127:BW5117),Dashboard!$L$36,FALSE)) -> 
CC128: =IF(BV128="","",AVERAGE($BV$10:BV128)) ->  | CE128: =IF(BV128="","",_xlfn.NORM.DIST(BV128,AVERAGE($BV$10:$BV$5000),Dashboard!$L$36,FALSE)) ->  | CK128: =IF(BV128="","",_xlfn.NORM.DIST(BV128,AVERAGE(BV128:BW5118),Dashboard!$L$36,FALSE)) -> 
CC129: =IF(BV129="","",AVERAGE($BV$10:BV129)) ->  | CE129: =IF(BV129="","",_xlfn.NORM.DIST(BV129,AVERAGE($BV$10:$BV$5000),Dashboard!$L$36,FALSE)) ->  | CK129: =IF(BV129="","",_xlfn.NORM.DIST(BV129,AVERAGE(BV129:BW5119),Dashboard!$L$36,FALSE)) -> 
CC130: =IF(BV130="","",AVERAGE($BV$10:BV130)) ->  | CE130: =IF(BV130="","",_xlfn.NORM.DIST(BV130,AVERAGE($BV$10:$BV$5000),Dashboard!$L$36,FALSE)) ->  | CK130: =IF(BV130="","",_xlfn.NORM.DIST(BV130,AVERAGE(BV130:BW5120),Dashboard!$L$36,FALSE)) -> 
CC131: =IF(BV131="","",AVERAGE($BV$10:BV131)) ->  | CE131: =IF(BV131="","",_xlfn.NORM.DIST(BV131,AVERAGE($BV$10:$BV$5000),Dashboard!$L$36,FALSE)) ->  | CK131: =IF(BV131="","",_xlfn.NORM.DIST(BV131,AVERAGE(BV131:BW5121),Dashboard!$L$36,FALSE)) -> 
CC132: =IF(BV132="","",AVERAGE($BV$10:BV132)) ->  | CE132: =IF(BV132="","",_xlfn.NORM.DIST(BV132,AVERAGE($BV$10:$BV$5000),Dashboard!$L$36,FALSE)) ->  | CK132: =IF(BV132="","",_xlfn.NORM.DIST(BV132,AVERAGE(BV132:BW5122),Dashboard!$L$36,FALSE)) -> 
CC133: =IF(BV133="","",AVERAGE($BV$10:BV133)) ->  | CE133: =IF(BV133="","",_xlfn.NORM.DIST(BV133,AVERAGE($BV$10:$BV$5000),Dashboard!$L$36,FALSE)) ->  | CK133: =IF(BV133="","",_xlfn.NORM.DIST(BV133,AVERAGE(BV133:BW5123),Dashboard!$L$36,FALSE)) -> 
CC134: =IF(BV134="","",AVERAGE($BV$10:BV134)) ->  | CE134: =IF(BV134="","",_xlfn.NORM.DIST(BV134,AVERAGE($BV$10:$BV$5000),Dashboard!$L$36,FALSE)) ->  | CK134: =IF(BV134="","",_xlfn.NORM.DIST(BV134,AVERAGE(BV134:BW5124),Dashboard!$L$36,FALSE)) -> 
CC135: =IF(BV135="","",AVERAGE($BV$10:BV135)) ->  | CE135: =IF(BV135="","",_xlfn.NORM.DIST(BV135,AVERAGE($BV$10:$BV$5000),Dashboard!$L$36,FALSE)) ->  | CK135: =IF(BV135="","",_xlfn.NORM.DIST(BV135,AVERAGE(BV135:BW5125),Dashboard!$L$36,FALSE)) -> 
CC136: =IF(BV136="","",AVERAGE($BV$10:BV136)) ->  | CE136: =IF(BV136="","",_xlfn.NORM.DIST(BV136,AVERAGE($BV$10:$BV$5000),Dashboard!$L$36,FALSE)) ->  | CK136: =IF(BV136="","",_xlfn.NORM.DIST(BV136,AVERAGE(BV136:BW5126),Dashboard!$L$36,FALSE)) -> 
CC137: =IF(BV137="","",AVERAGE($BV$10:BV137)) ->  | CE137: =IF(BV137="","",_xlfn.NORM.DIST(BV137,AVERAGE($BV$10:$BV$5000),Dashboard!$L$36,FALSE)) ->  | CK137: =IF(BV137="","",_xlfn.NORM.DIST(BV137,AVERAGE(BV137:BW5127),Dashboard!$L$36,FALSE)) -> 
CC138: =IF(BV138="","",AVERAGE($BV$10:BV138)) ->  | CE138: =IF(BV138="","",_xlfn.NORM.DIST(BV138,AVERAGE($BV$10:$BV$5000),Dashboard!$L$36,FALSE)) ->  | CK138: =IF(BV138="","",_xlfn.NORM.DIST(BV138,AVERAGE(BV138:BW5128),Dashboard!$L$36,FALSE)) -> 
CC139: =IF(BV139="","",AVERAGE($BV$10:BV139)) ->  | CE139: =IF(BV139="","",_xlfn.NORM.DIST(BV139,AVERAGE($BV$10:$BV$5000),Dashboard!$L$36,FALSE)) ->  | CK139: =IF(BV139="","",_xlfn.NORM.DIST(BV139,AVERAGE(BV139:BW5129),Dashboard!$L$36,FALSE)) -> 
CC140: =IF(BV140="","",AVERAGE($BV$10:BV140)) ->  | CE140: =IF(BV140="","",_xlfn.NORM.DIST(BV140,AVERAGE($BV$10:$BV$5000),Dashboard!$L$36,FALSE)) ->  | CK140: =IF(BV140="","",_xlfn.NORM.DIST(BV140,AVERAGE(BV140:BW5130),Dashboard!$L$36,FALSE)) -> 
CC141: =IF(BV141="","",AVERAGE($BV$10:BV141)) ->  | CE141: =IF(BV141="","",_xlfn.NORM.DIST(BV141,AVERAGE($BV$10:$BV$5000),Dashboard!$L$36,FALSE)) ->  | CK141: =IF(BV141="","",_xlfn.NORM.DIST(BV141,AVERAGE(BV141:BW5131),Dashboard!$L$36,FALSE)) -> 
CC142: =IF(BV142="","",AVERAGE($BV$10:BV142)) ->  | CE142: =IF(BV142="","",_xlfn.NORM.DIST(BV142,AVERAGE($BV$10:$BV$5000),Dashboard!$L$36,FALSE)) ->  | CK142: =IF(BV142="","",_xlfn.NORM.DIST(BV142,AVERAGE(BV142:BW5132),Dashboard!$L$36,FALSE)) -> 
CC143: =IF(BV143="","",AVERAGE($BV$10:BV143)) ->  | CE143: =IF(BV143="","",_xlfn.NORM.DIST(BV143,AVERAGE($BV$10:$BV$5000),Dashboard!$L$36,FALSE)) ->  | CK143: =IF(BV143="","",_xlfn.NORM.DIST(BV143,AVERAGE(BV143:BW5133),Dashboard!$L$36,FALSE)) -> 
CC144: =IF(BV144="","",AVERAGE($BV$10:BV144)) ->  | CE144: =IF(BV144="","",_xlfn.NORM.DIST(BV144,AVERAGE($BV$10:$BV$5000),Dashboard!$L$36,FALSE)) ->  | CK144: =IF(BV144="","",_xlfn.NORM.DIST(BV144,AVERAGE(BV144:BW5134),Dashboard!$L$36,FALSE)) -> 
CC145: =IF(BV145="","",AVERAGE($BV$10:BV145)) ->  | CE145: =IF(BV145="","",_xlfn.NORM.DIST(BV145,AVERAGE($BV$10:$BV$5000),Dashboard!$L$36,FALSE)) ->  | CK145: =IF(BV145="","",_xlfn.NORM.DIST(BV145,AVERAGE(BV145:BW5135),Dashboard!$L$36,FALSE)) -> 
CC146: =IF(BV146="","",AVERAGE($BV$10:BV146)) ->  | CE146: =IF(BV146="","",_xlfn.NORM.DIST(BV146,AVERAGE($BV$10:$BV$5000),Dashboard!$L$36,FALSE)) ->  | CK146: =IF(BV146="","",_xlfn.NORM.DIST(BV146,AVERAGE(BV146:BW5136),Dashboard!$L$36,FALSE)) -> 
CC147: =IF(BV147="","",AVERAGE($BV$10:BV147)) ->  | CE147: =IF(BV147="","",_xlfn.NORM.DIST(BV147,AVERAGE($BV$10:$BV$5000),Dashboard!$L$36,FALSE)) ->  | CK147: =IF(BV147="","",_xlfn.NORM.DIST(BV147,AVERAGE(BV147:BW5137),Dashboard!$L$36,FALSE)) -> 
CC148: =IF(BV148="","",AVERAGE($BV$10:BV148)) ->  | CE148: =IF(BV148="","",_xlfn.NORM.DIST(BV148,AVERAGE($BV$10:$BV$5000),Dashboard!$L$36,FALSE)) ->  | CK148: =IF(BV148="","",_xlfn.NORM.DIST(BV148,AVERAGE(BV148:BW5138),Dashboard!$L$36,FALSE)) -> 
AX149: =IF(SUM(AR149:AW149)=0,"",AVERAGE(AR149:AW149)) ->  | BJ149: =IF(SUM(BD149:BI149)=0,"",AVERAGE(BD149:BI149)) ->  | BV149: =IF(SUM(BP149:BU149)=0,"",AVERAGE(BP149:BU149)) ->  | CA149: =IF(BV149="","",BV149-AJ149) ->  | CC149: =IF(BV149="","",AVERAGE($BV$10:BV149)) ->  | CE149: =IF(BV149="","",_xlfn.NORM.DIST(BV149,AVERAGE($BV$10:$BV$5000),Dashboard!$L$36,FALSE)) ->  | CK149: =IF(BV149="","",_xlfn.NORM.DIST(BV149,AVERAGE(BV149:BW5139),Dashboard!$L$36,FALSE)) -> 
CC150: =IF(BV150="","",AVERAGE($BV$10:BV150)) ->  | CE150: =IF(BV150="","",_xlfn.NORM.DIST(BV150,AVERAGE($BV$10:$BV$5000),Dashboard!$L$36,FALSE)) ->  | CK150: =IF(BV150="","",_xlfn.NORM.DIST(BV150,AVERAGE(BV150:BW5140),Dashboard!$L$36,FALSE)) -> 
CC151: =IF(BV151="","",AVERAGE($BV$10:BV151)) ->  | CE151: =IF(BV151="","",_xlfn.NORM.DIST(BV151,AVERAGE($BV$10:$BV$5000),Dashboard!$L$36,FALSE)) ->  | CK151: =IF(BV151="","",_xlfn.NORM.DIST(BV151,AVERAGE(BV151:BW5141),Dashboard!$L$36,FALSE)) -> 
CC152: =IF(BV152="","",AVERAGE($BV$10:BV152)) ->  | CE152: =IF(BV152="","",_xlfn.NORM.DIST(BV152,AVERAGE($BV$10:$BV$5000),Dashboard!$L$36,FALSE)) ->  | CK152: =IF(BV152="","",_xlfn.NORM.DIST(BV152,AVERAGE(BV152:BW5142),Dashboard!$L$36,FALSE)) -> 
CC153: =IF(BV153="","",AVERAGE($BV$10:BV153)) ->  | CE153: =IF(BV153="","",_xlfn.NORM.DIST(BV153,AVERAGE($BV$10:$BV$5000),Dashboard!$L$36,FALSE)) ->  | CK153: =IF(BV153="","",_xlfn.NORM.DIST(BV153,AVERAGE(BV153:BW5143),Dashboard!$L$36,FALSE)) -> 
CC154: =IF(BV154="","",AVERAGE($BV$10:BV154)) ->  | CE154: =IF(BV154="","",_xlfn.NORM.DIST(BV154,AVERAGE($BV$10:$BV$5000),Dashboard!$L$36,FALSE)) ->  | CK154: =IF(BV154="","",_xlfn.NORM.DIST(BV154,AVERAGE(BV154:BW5144),Dashboard!$L$36,FALSE)) -> 
CC155: =IF(BV155="","",AVERAGE($BV$10:BV155)) ->  | CE155: =IF(BV155="","",_xlfn.NORM.DIST(BV155,AVERAGE($BV$10:$BV$5000),Dashboard!$L$36,FALSE)) ->  | CK155: =IF(BV155="","",_xlfn.NORM.DIST(BV155,AVERAGE(BV155:BW5145),Dashboard!$L$36,FALSE)) -> 
CC156: =IF(BV156="","",AVERAGE($BV$10:BV156)) ->  | CE156: =IF(BV156="","",_xlfn.NORM.DIST(BV156,AVERAGE($BV$10:$BV$5000),Dashboard!$L$36,FALSE)) ->  | CK156: =IF(BV156="","",_xlfn.NORM.DIST(BV156,AVERAGE(BV156:BW5146),Dashboard!$L$36,FALSE)) -> 
CC157: =IF(BV157="","",AVERAGE($BV$10:BV157)) ->  | CE157: =IF(BV157="","",_xlfn.NORM.DIST(BV157,AVERAGE($BV$10:$BV$5000),Dashboard!$L$36,FALSE)) ->  | CK157: =IF(BV157="","",_xlfn.NORM.DIST(BV157,AVERAGE(BV157:BW5147),Dashboard!$L$36,FALSE)) -> 
CC158: =IF(BV158="","",AVERAGE($BV$10:BV158)) ->  | CE158: =IF(BV158="","",_xlfn.NORM.DIST(BV158,AVERAGE($BV$10:$BV$5000),Dashboard!$L$36,FALSE)) ->  | CK158: =IF(BV158="","",_xlfn.NORM.DIST(BV158,AVERAGE(BV158:BW5148),Dashboard!$L$36,FALSE)) -> 
CC159: =IF(BV159="","",AVERAGE($BV$10:BV159)) ->  | CE159: =IF(BV159="","",_xlfn.NORM.DIST(BV159,AVERAGE($BV$10:$BV$5000),Dashboard!$L$36,FALSE)) ->  | CK159: =IF(BV159="","",_xlfn.NORM.DIST(BV159,AVERAGE(BV159:BW5149),Dashboard!$L$36,FALSE)) -> 
CC160: =IF(BV160="","",AVERAGE($BV$10:BV160)) ->  | CE160: =IF(BV160="","",_xlfn.NORM.DIST(BV160,AVERAGE($BV$10:$BV$5000),Dashboard!$L$36,FALSE)) ->  | CK160: =IF(BV160="","",_xlfn.NORM.DIST(BV160,AVERAGE(BV160:BW5150),Dashboard!$L$36,FALSE)) -> 
CC161: =IF(BV161="","",AVERAGE($BV$10:BV161)) ->  | CE161: =IF(BV161="","",_xlfn.NORM.DIST(BV161,AVERAGE($BV$10:$BV$5000),Dashboard!$L$36,FALSE)) ->  | CK161: =IF(BV161="","",_xlfn.NORM.DIST(BV161,AVERAGE(BV161:BW5151),Dashboard!$L$36,FALSE)) -> 
CC162: =IF(BV162="","",AVERAGE($BV$10:BV162)) ->  | CE162: =IF(BV162="","",_xlfn.NORM.DIST(BV162,AVERAGE($BV$10:$BV$5000),Dashboard!$L$36,FALSE)) ->  | CK162: =IF(BV162="","",_xlfn.NORM.DIST(BV162,AVERAGE(BV162:BW5152),Dashboard!$L$36,FALSE)) -> 
CC163: =IF(BV163="","",AVERAGE($BV$10:BV163)) ->  | CE163: =IF(BV163="","",_xlfn.NORM.DIST(BV163,AVERAGE($BV$10:$BV$5000),Dashboard!$L$36,FALSE)) ->  | CK163: =IF(BV163="","",_xlfn.NORM.DIST(BV163,AVERAGE(BV163:BW5153),Dashboard!$L$36,FALSE)) -> 
CC164: =IF(BV164="","",AVERAGE($BV$10:BV164)) ->  | CE164: =IF(BV164="","",_xlfn.NORM.DIST(BV164,AVERAGE($BV$10:$BV$5000),Dashboard!$L$36,FALSE)) ->  | CK164: =IF(BV164="","",_xlfn.NORM.DIST(BV164,AVERAGE(BV164:BW5154),Dashboard!$L$36,FALSE)) -> 
CC165: =IF(BV165="","",AVERAGE($BV$10:BV165)) ->  | CE165: =IF(BV165="","",_xlfn.NORM.DIST(BV165,AVERAGE($BV$10:$BV$5000),Dashboard!$L$36,FALSE)) ->  | CK165: =IF(BV165="","",_xlfn.NORM.DIST(BV165,AVERAGE(BV165:BW5155),Dashboard!$L$36,FALSE)) -> 
CC166: =IF(BV166="","",AVERAGE($BV$10:BV166)) ->  | CE166: =IF(BV166="","",_xlfn.NORM.DIST(BV166,AVERAGE($BV$10:$BV$5000),Dashboard!$L$36,FALSE)) ->  | CK166: =IF(BV166="","",_xlfn.NORM.DIST(BV166,AVERAGE(BV166:BW5156),Dashboard!$L$36,FALSE)) -> 
CC167: =IF(BV167="","",AVERAGE($BV$10:BV167)) ->  | CE167: =IF(BV167="","",_xlfn.NORM.DIST(BV167,AVERAGE($BV$10:$BV$5000),Dashboard!$L$36,FALSE)) ->  | CK167: =IF(BV167="","",_xlfn.NORM.DIST(BV167,AVERAGE(BV167:BW5157),Dashboard!$L$36,FALSE)) -> 
CC168: =IF(BV168="","",AVERAGE($BV$10:BV168)) ->  | CE168: =IF(BV168="","",_xlfn.NORM.DIST(BV168,AVERAGE($BV$10:$BV$5000),Dashboard!$L$36,FALSE)) ->  | CK168: =IF(BV168="","",_xlfn.NORM.DIST(BV168,AVERAGE(BV168:BW5158),Dashboard!$L$36,FALSE)) -> 
CC169: =IF(BV169="","",AVERAGE($BV$10:BV169)) ->  | CE169: =IF(BV169="","",_xlfn.NORM.DIST(BV169,AVERAGE($BV$10:$BV$5000),Dashboard!$L$36,FALSE)) ->  | CK169: =IF(BV169="","",_xlfn.NORM.DIST(BV169,AVERAGE(BV169:BW5159),Dashboard!$L$36,FALSE)) -> 
CC170: =IF(BV170="","",AVERAGE($BV$10:BV170)) ->  | CE170: =IF(BV170="","",_xlfn.NORM.DIST(BV170,AVERAGE($BV$10:$BV$5000),Dashboard!$L$36,FALSE)) ->  | CK170: =IF(BV170="","",_xlfn.NORM.DIST(BV170,AVERAGE(BV170:BW5160),Dashboard!$L$36,FALSE)) -> 
CC171: =IF(BV171="","",AVERAGE($BV$10:BV171)) ->  | CE171: =IF(BV171="","",_xlfn.NORM.DIST(BV171,AVERAGE($BV$10:$BV$5000),Dashboard!$L$36,FALSE)) ->  | CK171: =IF(BV171="","",_xlfn.NORM.DIST(BV171,AVERAGE(BV171:BW5161),Dashboard!$L$36,FALSE)) -> 
CC172: =IF(BV172="","",AVERAGE($BV$10:BV172)) ->  | CE172: =IF(BV172="","",_xlfn.NORM.DIST(BV172,AVERAGE($BV$10:$BV$5000),Dashboard!$L$36,FALSE)) ->  | CK172: =IF(BV172="","",_xlfn.NORM.DIST(BV172,AVERAGE(BV172:BW5162),Dashboard!$L$36,FALSE)) -> 
CC173: =IF(BV173="","",AVERAGE($BV$10:BV173)) ->  | CE173: =IF(BV173="","",_xlfn.NORM.DIST(BV173,AVERAGE($BV$10:$BV$5000),Dashboard!$L$36,FALSE)) ->  | CK173: =IF(BV173="","",_xlfn.NORM.DIST(BV173,AVERAGE(BV173:BW5163),Dashboard!$L$36,FALSE)) -> 
CC174: =IF(BV174="","",AVERAGE($BV$10:BV174)) ->  | CE174: =IF(BV174="","",_xlfn.NORM.DIST(BV174,AVERAGE($BV$10:$BV$5000),Dashboard!$L$36,FALSE)) ->  | CK174: =IF(BV174="","",_xlfn.NORM.DIST(BV174,AVERAGE(BV174:BW5164),Dashboard!$L$36,FALSE)) -> 
CC175: =IF(BV175="","",AVERAGE($BV$10:BV175)) ->  | CE175: =IF(BV175="","",_xlfn.NORM.DIST(BV175,AVERAGE($BV$10:$BV$5000),Dashboard!$L$36,FALSE)) ->  | CK175: =IF(BV175="","",_xlfn.NORM.DIST(BV175,AVERAGE(BV175:BW5165),Dashboard!$L$36,FALSE)) -> 
CC176: =IF(BV176="","",AVERAGE($BV$10:BV176)) ->  | CE176: =IF(BV176="","",_xlfn.NORM.DIST(BV176,AVERAGE($BV$10:$BV$5000),Dashboard!$L$36,FALSE)) ->  | CK176: =IF(BV176="","",_xlfn.NORM.DIST(BV176,AVERAGE(BV176:BW5166),Dashboard!$L$36,FALSE)) -> 
CC177: =IF(BV177="","",AVERAGE($BV$10:BV177)) ->  | CE177: =IF(BV177="","",_xlfn.NORM.DIST(BV177,AVERAGE($BV$10:$BV$5000),Dashboard!$L$36,FALSE)) ->  | CK177: =IF(BV177="","",_xlfn.NORM.DIST(BV177,AVERAGE(BV177:BW5167),Dashboard!$L$36,FALSE)) -> 
CC178: =IF(BV178="","",AVERAGE($BV$10:BV178)) ->  | CE178: =IF(BV178="","",_xlfn.NORM.DIST(BV178,AVERAGE($BV$10:$BV$5000),Dashboard!$L$36,FALSE)) ->  | CK178: =IF(BV178="","",_xlfn.NORM.DIST(BV178,AVERAGE(BV178:BW5168),Dashboard!$L$36,FALSE)) -> 
CC179: =IF(BV179="","",AVERAGE($BV$10:BV179)) ->  | CE179: =IF(BV179="","",_xlfn.NORM.DIST(BV179,AVERAGE($BV$10:$BV$5000),Dashboard!$L$36,FALSE)) ->  | CK179: =IF(BV179="","",_xlfn.NORM.DIST(BV179,AVERAGE(BV179:BW5169),Dashboard!$L$36,FALSE)) -> 
CC180: =IF(BV180="","",AVERAGE($BV$10:BV180)) ->  | CE180: =IF(BV180="","",_xlfn.NORM.DIST(BV180,AVERAGE($BV$10:$BV$5000),Dashboard!$L$36,FALSE)) ->  | CK180: =IF(BV180="","",_xlfn.NORM.DIST(BV180,AVERAGE(BV180:BW5170),Dashboard!$L$36,FALSE)) -> 
CC181: =IF(BV181="","",AVERAGE($BV$10:BV181)) ->  | CE181: =IF(BV181="","",_xlfn.NORM.DIST(BV181,AVERAGE($BV$10:$BV$5000),Dashboard!$L$36,FALSE)) ->  | CK181: =IF(BV181="","",_xlfn.NORM.DIST(BV181,AVERAGE(BV181:BW5171),Dashboard!$L$36,FALSE)) -> 
CC182: =IF(BV182="","",AVERAGE($BV$10:BV182)) ->  | CE182: =IF(BV182="","",_xlfn.NORM.DIST(BV182,AVERAGE($BV$10:$BV$5000),Dashboard!$L$36,FALSE)) ->  | CK182: =IF(BV182="","",_xlfn.NORM.DIST(BV182,AVERAGE(BV182:BW5172),Dashboard!$L$36,FALSE)) -> 
CC183: =IF(BV183="","",AVERAGE($BV$10:BV183)) ->  | CE183: =IF(BV183="","",_xlfn.NORM.DIST(BV183,AVERAGE($BV$10:$BV$5000),Dashboard!$L$36,FALSE)) ->  | CK183: =IF(BV183="","",_xlfn.NORM.DIST(BV183,AVERAGE(BV183:BW5173),Dashboard!$L$36,FALSE)) -> 
CC184: =IF(BV184="","",AVERAGE($BV$10:BV184)) ->  | CE184: =IF(BV184="","",_xlfn.NORM.DIST(BV184,AVERAGE($BV$10:$BV$5000),Dashboard!$L$36,FALSE)) ->  | CK184: =IF(BV184="","",_xlfn.NORM.DIST(BV184,AVERAGE(BV184:BW5174),Dashboard!$L$36,FALSE)) -> 
CC185: =IF(BV185="","",AVERAGE($BV$10:BV185)) ->  | CE185: =IF(BV185="","",_xlfn.NORM.DIST(BV185,AVERAGE($BV$10:$BV$5000),Dashboard!$L$36,FALSE)) ->  | CK185: =IF(BV185="","",_xlfn.NORM.DIST(BV185,AVERAGE(BV185:BW5175),Dashboard!$L$36,FALSE)) -> 
CC186: =IF(BV186="","",AVERAGE($BV$10:BV186)) ->  | CE186: =IF(BV186="","",_xlfn.NORM.DIST(BV186,AVERAGE($BV$10:$BV$5000),Dashboard!$L$36,FALSE)) ->  | CK186: =IF(BV186="","",_xlfn.NORM.DIST(BV186,AVERAGE(BV186:BW5176),Dashboard!$L$36,FALSE)) -> 
CC187: =IF(BV187="","",AVERAGE($BV$10:BV187)) ->  | CE187: =IF(BV187="","",_xlfn.NORM.DIST(BV187,AVERAGE($BV$10:$BV$5000),Dashboard!$L$36,FALSE)) ->  | CK187: =IF(BV187="","",_xlfn.NORM.DIST(BV187,AVERAGE(BV187:BW5177),Dashboard!$L$36,FALSE)) -> 
CC188: =IF(BV188="","",AVERAGE($BV$10:BV188)) ->  | CE188: =IF(BV188="","",_xlfn.NORM.DIST(BV188,AVERAGE($BV$10:$BV$5000),Dashboard!$L$36,FALSE)) ->  | CK188: =IF(BV188="","",_xlfn.NORM.DIST(BV188,AVERAGE(BV188:BW5178),Dashboard!$L$36,FALSE)) -> 
CC189: =IF(BV189="","",AVERAGE($BV$10:BV189)) ->  | CE189: =IF(BV189="","",_xlfn.NORM.DIST(BV189,AVERAGE($BV$10:$BV$5000),Dashboard!$L$36,FALSE)) ->  | CK189: =IF(BV189="","",_xlfn.NORM.DIST(BV189,AVERAGE(BV189:BW5179),Dashboard!$L$36,FALSE)) -> 
CC190: =IF(BV190="","",AVERAGE($BV$10:BV190)) ->  | CE190: =IF(BV190="","",_xlfn.NORM.DIST(BV190,AVERAGE($BV$10:$BV$5000),Dashboard!$L$36,FALSE)) ->  | CK190: =IF(BV190="","",_xlfn.NORM.DIST(BV190,AVERAGE(BV190:BW5180),Dashboard!$L$36,FALSE)) -> 
CC191: =IF(BV191="","",AVERAGE($BV$10:BV191)) ->  | CE191: =IF(BV191="","",_xlfn.NORM.DIST(BV191,AVERAGE($BV$10:$BV$5000),Dashboard!$L$36,FALSE)) ->  | CK191: =IF(BV191="","",_xlfn.NORM.DIST(BV191,AVERAGE(BV191:BW5181),Dashboard!$L$36,FALSE)) -> 
CC192: =IF(BV192="","",AVERAGE($BV$10:BV192)) ->  | CE192: =IF(BV192="","",_xlfn.NORM.DIST(BV192,AVERAGE($BV$10:$BV$5000),Dashboard!$L$36,FALSE)) ->  | CK192: =IF(BV192="","",_xlfn.NORM.DIST(BV192,AVERAGE(BV192:BW5182),Dashboard!$L$36,FALSE)) -> 
CC193: =IF(BV193="","",AVERAGE($BV$10:BV193)) ->  | CE193: =IF(BV193="","",_xlfn.NORM.DIST(BV193,AVERAGE($BV$10:$BV$5000),Dashboard!$L$36,FALSE)) ->  | CK193: =IF(BV193="","",_xlfn.NORM.DIST(BV193,AVERAGE(BV193:BW5183),Dashboard!$L$36,FALSE)) -> 
CC194: =IF(BV194="","",AVERAGE($BV$10:BV194)) ->  | CE194: =IF(BV194="","",_xlfn.NORM.DIST(BV194,AVERAGE($BV$10:$BV$5000),Dashboard!$L$36,FALSE)) ->  | CK194: =IF(BV194="","",_xlfn.NORM.DIST(BV194,AVERAGE(BV194:BW5184),Dashboard!$L$36,FALSE)) -> 
CC195: =IF(BV195="","",AVERAGE($BV$10:BV195)) ->  | CE195: =IF(BV195="","",_xlfn.NORM.DIST(BV195,AVERAGE($BV$10:$BV$5000),Dashboard!$L$36,FALSE)) ->  | CK195: =IF(BV195="","",_xlfn.NORM.DIST(BV195,AVERAGE(BV195:BW5185),Dashboard!$L$36,FALSE)) -> 
CC196: =IF(BV196="","",AVERAGE($BV$10:BV196)) ->  | CE196: =IF(BV196="","",_xlfn.NORM.DIST(BV196,AVERAGE($BV$10:$BV$5000),Dashboard!$L$36,FALSE)) ->  | CK196: =IF(BV196="","",_xlfn.NORM.DIST(BV196,AVERAGE(BV196:BW5186),Dashboard!$L$36,FALSE)) -> 
CC197: =IF(BV197="","",AVERAGE($BV$10:BV197)) ->  | CE197: =IF(BV197="","",_xlfn.NORM.DIST(BV197,AVERAGE($BV$10:$BV$5000),Dashboard!$L$36,FALSE)) ->  | CK197: =IF(BV197="","",_xlfn.NORM.DIST(BV197,AVERAGE(BV197:BW5187),Dashboard!$L$36,FALSE)) -> 
CC198: =IF(BV198="","",AVERAGE($BV$10:BV198)) ->  | CE198: =IF(BV198="","",_xlfn.NORM.DIST(BV198,AVERAGE($BV$10:$BV$5000),Dashboard!$L$36,FALSE)) ->  | CK198: =IF(BV198="","",_xlfn.NORM.DIST(BV198,AVERAGE(BV198:BW5188),Dashboard!$L$36,FALSE)) -> 
CC199: =IF(BV199="","",AVERAGE($BV$10:BV199)) ->  | CE199: =IF(BV199="","",_xlfn.NORM.DIST(BV199,AVERAGE($BV$10:$BV$5000),Dashboard!$L$36,FALSE)) ->  | CK199: =IF(BV199="","",_xlfn.NORM.DIST(BV199,AVERAGE(BV199:BW5189),Dashboard!$L$36,FALSE)) -> 
CC200: =IF(BV200="","",AVERAGE($BV$10:BV200)) ->  | CE200: =IF(BV200="","",_xlfn.NORM.DIST(BV200,AVERAGE($BV$10:$BV$5000),Dashboard!$L$36,FALSE)) ->  | CK200: =IF(BV200="","",_xlfn.NORM.DIST(BV200,AVERAGE(BV200:BW5190),Dashboard!$L$36,FALSE)) -> 
... 300 more rows

Sheet Dashboard
A1: =Register!AZ6 -> [ref.number]
A2: Total number of cubes | G2: =SUM(Register!N10:O1048576) -> 90 | U2: Total number of cubes | AA2: =G2 -> 90
A3: Concrete QTY m3 | G3: =SUM(Register!AL10:AM1048576) -> 198 | U3: Failed | AA3: =COUNTIF(Register!BX10:BZ1048576,U3) -> 0
U4: Passed | AA4: =COUNTIF(Register!BX10:BZ1048576,U4) -> 10
A11: Average no. cubes per m3 | I11: =G2/G3 -> 0.5 | U11: Percentage failed | AC11: =IFERROR(AA3/AA4,0) -> 0.00%
A12: As of | I12: =MAXA(Register!AF10:AI1048576) -> 2015-01-09 | U12: As of | AC12: =IF(MAXA(Register!$BL$10:$BO$1048576)=0,TODAY(),MAXA(Register!$BL$10:$BO$1048576)) -> 2015-02-06
A24: Failed | C24: =AA3 -> 0 | J24: =U12 -> As of | L24: =AC12 -> 2015-02-06
A36: x̄ | C36: =IFERROR(AVERAGE(Register!BV10:BW1048576),0) -> 40.00 | E36: MPa | J36: σ | L36: =IFERROR(_xlfn.STDEV.P(Register!CA10:CB500),0) -> 0.75 | N36: MPa | S36: =U12 -> As of | U36: =AC12 -> 2015-02-06

Sheet Total QTYs
A1: Project: | F1: =IF(Register!H1="","",Register!H1) -> [Project Name] | AA1: Total Concrete QTYs
A2: Sub-Project or Phase: | F2: =IF(Register!H2="","",Register!H2) -> [Sub-Project or Phase]
A3: Client: | F3: =IF(Register!H3="","",Register!H3) -> [Client] | AA3: Project Mngr.: | AF3: =IF(Register!AZ3="","",Register!AZ3) -> [Proj. Mngr.] | AN3: Printed on | AS3: =TODAY() -> 2015-03-11
A4: Client's Repres.: | F4: =IF(Register!H4="","",Register!H4) -> [Client's Representative] | AA4: QA/QC Mngr.: | AF4: =IF(Register!AZ4="","",Register!AZ4) -> [QA/QC Mngr.]
A5: Contractor: | F5: =IF(Register!H5="","",Register!H5) -> [Contractor] | AA5: Mix Design: | AF5: =Register!AZ5 -> [Mix Design]
F6: =IF(Register!H6="","",Register!H6) ->  | AA6: Ref.-No.: | AF6: [ref. no.]
A7: SN | C7: Period | M7: Consumption | U7: =IF(Supplier!$A1="","",Supplier!$A1) -> Supplier A | Y7: =IF(Supplier!$A2="","",Supplier!$A2) -> Supplier B | AC7: =IF(Supplier!$A3="","",Supplier!$A3) -> Supplier C | AG7: =IF(Supplier!$A4="","",Supplier!$A4) -> Supplier D | AK7: =IF(Supplier!$A5="","",Supplier!$A5) -> Supplier E | AO7: Remarks
C8: Start | H8: End | M8: This Period | Q8: Cummulative
A9: A | C9: B | H9: C | M9: D | Q9: E | U9: F | Y9: G | AC9: H | AG9: I | AK9: J | AO9: K
A10: 0001 | C10: 2015-01-01 | H10: =EDATE(C10,1)-1 -> 2015-01-31 | M10: =SUMIFS(Register!$AL$10:$AL$1048576,Register!$AF$10:$AF$1048576,">="&C10,Register!$AF$10:$AF$1048576,"<="&H10) -> 198.0m3 | Q10: =M10 -> 198.0m3 | U10: =IF(SUMIFS(Register!$AL$10:$AL$1048576,Register!$AF$10:$AF$1048576,">="&$C10,Register!$AF$10:$AF$1048576,"<="&$H10,Register!$AB$10:$AB$1048576,"="&$U$7)=0,"",SUMIFS(Register!$AL$10:$AL$1048576,Register!$AF$10:$AF$1048576,">="&$C10,Register!$AF$10:$AF$1048576,"<="&$H10,Register!$AB$10:$AB$1048576,"="&$U$7)) -> 38.0m3 | Y10: =IF(SUMIFS(Register!$AL$10:$AL$1048576,Register!$AF$10:$AF$1048576,">="&$C10,Register!$AF$10:$AF$1048576,"<="&$H10,Register!$AB$10:$AB$1048576,"="&$Y$7)=0,"",SUMIFS(Register!$AL$10:$AL$1048576,Register!$AF$10:$AF$1048576,">="&$C10,Register!$AF$10:$AF$1048576,"<="&$H10,Register!$AB$10:$AB$1048576,"="&$Y$7)) -> 38.0m3 | AC10: =IF(SUMIFS(Register!$AL$10:$AL$1048576,Register!$AF$10:$AF$1048576,">="&$C10,Register!$AF$10:$AF$1048576,"<="&$H10,Register!$AB$10:$AB$1048576,"="&$AC$7)=0,"",SUMIFS(Register!$AL$10:$AL$1048576,Register!$AF$10:$AF$1048576,">="&$C10,Register!$AF$10:$AF$1048576,"<="&$H10,Register!$AB$10:$AB$1048576,"="&$AC$7)) -> 38.0m3 | AG10: =IF(SUMIFS(Register!$AL$10:$AL$1048576,Register!$AF$10:$AF$1048576,">="&$C10,Register!$AF$10:$AF$1048576,"<="&$H10,Register!$AB$10:$AB$1048576,"="&$AG$7)=0,"",SUMIFS(Register!$AL$10:$AL$1048576,Register!$AF$10:$AF$1048576,">="&$C10,Register!$AF$10:$AF$1048576,"<="&$H10,Register!$AB$10:$AB$1048576,"="&$AG$7)) -> 38.0m3 | AK10: =IF(SUMIFS(Register!$AL$10:$AL$1048576,Register!$AF$10:$AF$1048576,">="&$C10,Register!$AF$10:$AF$1048576,"<="&$H10,Register!$AB$10:$AB$1048576,"="&$AK$7)=0,"",SUMIFS(Register!$AL$10:$AL$1048576,Register!$AF$10:$AF$1048576,">="&$C10,Register!$AF$10:$AF$1048576,"<="&$H10,Register!$AB$10:$AB$1048576,"="&$AK$7)) -> 46.0m3
A11: 0002 | C11: =EDATE(C10,1) -> 2015-02-01 | H11: =EDATE(C11,1)-1 -> 2015-02-28 | M11: =IF(SUMIFS(Register!$AL$10:$AL$1048576,Register!$AF$10:$AF$1048576,">="&C11,Register!$AF$10:$AF$1048576,"<="&H11)=0,"",SUMIFS(Register!$AL$10:$AL$1048576,Register!$AF$10:$AF$1048576,">="&C11,Register!$AF$10:$AF$1048576,"<="&H11)) ->  | Q11: =IF(M11="","",Q10+M11) ->  | U11: =IF(SUMIFS(Register!$AL$10:$AL$1048576,Register!$AF$10:$AF$1048576,">="&$C11,Register!$AF$10:$AF$1048576,"<="&$H11,Register!$AB$10:$AB$1048576,"="&$U$7)=0,"",SUMIFS(Register!$AL$10:$AL$1048576,Register!$AF$10:$AF$1048576,">="&$C11,Register!$AF$10:$AF$1048576,"<="&$H11,Register!$AB$10:$AB$1048576,"="&$U$7)) ->  | Y11: =IF(SUMIFS(Register!$AL$10:$AL$1048576,Register!$AF$10:$AF$1048576,">="&$C11,Register!$AF$10:$AF$1048576,"<="&$H11,Register!$AB$10:$AB$1048576,"="&$Y$7)=0,"",SUMIFS(Register!$AL$10:$AL$1048576,Register!$AF$10:$AF$1048576,">="&$C11,Register!$AF$10:$AF$1048576,"<="&$H11,Register!$AB$10:$AB$1048576,"="&$Y$7)) ->  | AC11: =IF(SUMIFS(Register!$AL$10:$AL$1048576,Register!$AF$10:$AF$1048576,">="&$C11,Register!$AF$10:$AF$1048576,"<="&$H11,Register!$AB$10:$AB$1048576,"="&$AC$7)=0,"",SUMIFS(Register!$AL$10:$AL$1048576,Register!$AF$10:$AF$1048576,">="&$C11,Register!$AF$10:$AF$1048576,"<="&$H11,Register!$AB$10:$AB$1048576,"="&$AC$7)) ->  | AG11: =IF(SUMIFS(Register!$AL$10:$AL$1048576,Register!$AF$10:$AF$1048576,">="&$C11,Register!$AF$10:$AF$1048576,"<="&$H11,Register!$AB$10:$AB$1048576,"="&$AG$7)=0,"",SUMIFS(Register!$AL$10:$AL$1048576,Register!$AF$10:$AF$1048576,">="&$C11,Register!$AF$10:$AF$1048576,"<="&$H11,Register!$AB$10:$AB$1048576,"="&$AG$7)) ->  | AK11: =IF(SUMIFS(Register!$AL$10:$AL$1048576,Register!$AF$10:$AF$1048576,">="&$C11,Register!$AF$10:$AF$1048576,"<="&$H11,Register!$AB$10:$AB$1048576,"="&$AK$7)=0,"",SUMIFS(Register!$AL$10:$AL$1048576,Register!$AF$10:$AF$1048576,">="&$C11,Register!$AF$10:$AF$1048576,"<="&$H11,Register!$AB$10:$AB$1048576,"="&$AK$7)) -> 
A12: 0003 | C12: =EDATE(C11,1) -> 2015-03-01 | H12: 2015-03-31 | M12: =IF(SUMIFS(Register!$AL$10:$AL$1048576,Register!$AF$10:$AF$1048576,">="&C12,Register!$AF$10:$AF$1048576,"<="&H12)=0,"",SUMIFS(Register!$AL$10:$AL$1048576,Register!$AF$10:$AF$1048576,">="&C12,Register!$AF$10:$AF$1048576,"<="&H12)) ->  | U12: =IF(SUMIFS(Register!$AL$10:$AL$1048576,Register!$AF$10:$AF$1048576,">="&$C12,Register!$AF$10:$AF$1048576,"<="&$H12,Register!$AB$10:$AB$1048576,"="&$U$7)=0,"",SUMIFS(Register!$AL$10:$AL$1048576,Register!$AF$10:$AF$1048576,">="&$C12,Register!$AF$10:$AF$1048576,"<="&$H12,Register!$AB$10:$AB$1048576,"="&$U$7)) ->  | Y12: =IF(SUMIFS(Register!$AL$10:$AL$1048576,Register!$AF$10:$AF$1048576,">="&$C12,Register!$AF$10:$AF$1048576,"<="&$H12,Register!$AB$10:$AB$1048576,"="&$Y$7)=0,"",SUMIFS(Register!$AL$10:$AL$1048576,Register!$AF$10:$AF$1048576,">="&$C12,Register!$AF$10:$AF$1048576,"<="&$H12,Register!$AB$10:$AB$1048576,"="&$Y$7)) ->  | AC12: =IF(SUMIFS(Register!$AL$10:$AL$1048576,Register!$AF$10:$AF$1048576,">="&$C12,Register!$AF$10:$AF$1048576,"<="&$H12,Register!$AB$10:$AB$1048576,"="&$AC$7)=0,"",SUMIFS(Register!$AL$10:$AL$1048576,Register!$AF$10:$AF$1048576,">="&$C12,Register!$AF$10:$AF$1048576,"<="&$H12,Register!$AB$10:$AB$1048576,"="&$AC$7)) ->  | AG12: =IF(SUMIFS(Register!$AL$10:$AL$1048576,Register!$AF$10:$AF$1048576,">="&$C12,Register!$AF$10:$AF$1048576,"<="&$H12,Register!$AB$10:$AB$1048576,"="&$AG$7)=0,"",SUMIFS(Register!$AL$10:$AL$1048576,Register!$AF$10:$AF$1048576,">="&$C12,Register!$AF$10:$AF$1048576,"<="&$H12,Register!$AB$10:$AB$1048576,"="&$AG$7)) ->  | AK12: =IF(SUMIFS(Register!$AL$10:$AL$1048576,Register!$AF$10:$AF$1048576,">="&$C12,Register!$AF$10:$AF$1048576,"<="&$H12,Register!$AB$10:$AB$1048576,"="&$AK$7)=0,"",SUMIFS(Register!$AL$10:$AL$1048576,Register!$AF$10:$AF$1048576,">="&$C12,Register!$AF$10:$AF$1048576,"<="&$H12,Register!$AB$10:$AB$1048576,"="&$AK$7)) -> 
A13: 0004 | C13: 2015-04-01 | H13: 2015-04-30 | M13: =IF(SUMIFS(Register!$AL$10:$AL$1048576,Register!$AF$10:$AF$1048576,">="&C13,Register!$AF$10:$AF$1048576,"<="&H13)=0,"",SUMIFS(Register!$AL$10:$AL$1048576,Register!$AF$10:$AF$1048576,">="&C13,Register!$AF$10:$AF$1048576,"<="&H13)) ->  | U13: =IF(SUMIFS(Register!$AL$10:$AL$1048576,Register!$AF$10:$AF$1048576,">="&$C13,Register!$AF$10:$AF$1048576,"<="&$H13,Register!$AB$10:$AB$1048576,"="&$U$7)=0,"",SUMIFS(Register!$AL$10:$AL$1048576,Register!$AF$10:$AF$1048576,">="&$C13,Register!$AF$10:$AF$1048576,"<="&$H13,Register!$AB$10:$AB$1048576,"="&$U$7)) ->  | Y13: =IF(SUMIFS(Register!$AL$10:$AL$1048576,Register!$AF$10:$AF$1048576,">="&$C13,Register!$AF$10:$AF$1048576,"<="&$H13,Register!$AB$10:$AB$1048576,"="&$Y$7)=0,"",SUMIFS(Register!$AL$10:$AL$1048576,Register!$AF$10:$AF$1048576,">="&$C13,Register!$AF$10:$AF$1048576,"<="&$H13,Register!$AB$10:$AB$1048576,"="&$Y$7)) ->  | AC13: =IF(SUMIFS(Register!$AL$10:$AL$1048576,Register!$AF$10:$AF$1048576,">="&$C13,Register!$AF$10:$AF$1048576,"<="&$H13,Register!$AB$10:$AB$1048576,"="&$AC$7)=0,"",SUMIFS(Register!$AL$10:$AL$1048576,Register!$AF$10:$AF$1048576,">="&$C13,Register!$AF$10:$AF$1048576,"<="&$H13,Register!$AB$10:$AB$1048576,"="&$AC$7)) ->  | AG13: =IF(SUMIFS(Register!$AL$10:$AL$1048576,Register!$AF$10:$AF$1048576,">="&$C13,Register!$AF$10:$AF$1048576,"<="&$H13,Register!$AB$10:$AB$1048576,"="&$AG$7)=0,"",SUMIFS(Register!$AL$10:$AL$1048576,Register!$AF$10:$AF$1048576,">="&$C13,Register!$AF$10:$AF$1048576,"<="&$H13,Register!$AB$10:$AB$1048576,"="&$AG$7)) ->  | AK13: =IF(SUMIFS(Register!$AL$10:$AL$1048576,Register!$AF$10:$AF$1048576,">="&$C13,Register!$AF$10:$AF$1048576,"<="&$H13,Register!$AB$10:$AB$1048576,"="&$AK$7)=0,"",SUMIFS(Register!$AL$10:$AL$1048576,Register!$AF$10:$AF$1048576,">="&$C13,Register!$AF$10:$AF$1048576,"<="&$H13,Register!$AB$10:$AB$1048576,"="&$AK$7)) -> 
A14: 0005 | C14: 2015-05-01 | H14: 2015-05-31 | M14: =IF(SUMIFS(Register!$AL$10:$AL$1048576,Register!$AF$10:$AF$1048576,">="&C14,Register!$AF$10:$AF$1048576,"<="&H14)=0,"",SUMIFS(Register!$AL$10:$AL$1048576,Register!$AF$10:$AF$1048576,">="&C14,Register!$AF$10:$AF$1048576,"<="&H14)) ->  | U14: =IF(SUMIFS(Register!$AL$10:$AL$1048576,Register!$AF$10:$AF$1048576,">="&$C14,Register!$AF$10:$AF$1048576,"<="&$H14,Register!$AB$10:$AB$1048576,"="&$U$7)=0,"",SUMIFS(Register!$AL$10:$AL$1048576,Register!$AF$10:$AF$1048576,">="&$C14,Register!$AF$10:$AF$1048576,"<="&$H14,Register!$AB$10:$AB$1048576,"="&$U$7)) ->  | Y14: =IF(SUMIFS(Register!$AL$10:$AL$1048576,Register!$AF$10:$AF$1048576,">="&$C14,Register!$AF$10:$AF$1048576,"<="&$H14,Register!$AB$10:$AB$1048576,"="&$Y$7)=0,"",SUMIFS(Register!$AL$10:$AL$1048576,Register!$AF$10:$AF$1048576,">="&$C14,Register!$AF$10:$AF$1048576,"<="&$H14,Register!$AB$10:$AB$1048576,"="&$Y$7)) ->  | AC14: =IF(SUMIFS(Register!$AL$10:$AL$1048576,Register!$AF$10:$AF$1048576,">="&$C14,Register!$AF$10:$AF$1048576,"<="&$H14,Register!$AB$10:$AB$1048576,"="&$AC$7)=0,"",SUMIFS(Register!$AL$10:$AL$1048576,Register!$AF$10:$AF$1048576,">="&$C14,Register!$AF$10:$AF$1048576,"<="&$H14,Register!$AB$10:$AB$1048576,"="&$AC$7)) ->  | AG14: =IF(SUMIFS(Register!$AL$10:$AL$1048576,Register!$AF$10:$AF$1048576,">="&$C14,Register!$AF$10:$AF$1048576,"<="&$H14,Register!$AB$10:$AB$1048576,"="&$AG$7)=0,"",SUMIFS(Register!$AL$10:$AL$1048576,Register!$AF$10:$AF$1048576,">="&$C14,Register!$AF$10:$AF$1048576,"<="&$H14,Register!$AB$10:$AB$1048576,"="&$AG$7)) ->  | AK14: =IF(SUMIFS(Register!$AL$10:$AL$1048576,Register!$AF$10:$AF$1048576,">="&$C14,Register!$AF$10:$AF$1048576,"<="&$H14,Register!$AB$10:$AB$1048576,"="&$AK$7)=0,"",SUMIFS(Register!$AL$10:$AL$1048576,Register!$AF$10:$AF$1048576,">="&$C14,Register!$AF$10:$AF$1048576,"<="&$H14,Register!$AB$10:$AB$1048576,"="&$AK$7)) -> 
A15: 0006 | C15: 2015-06-01 | H15: 2015-06-30 | M15: =IF(SUMIFS(Register!$AL$10:$AL$1048576,Register!$AF$10:$AF$1048576,">="&C15,Register!$AF$10:$AF$1048576,"<="&H15)=0,"",SUMIFS(Register!$AL$10:$AL$1048576,Register!$AF$10:$AF$1048576,">="&C15,Register!$AF$10:$AF$1048576,"<="&H15)) ->  | U15: =IF(SUMIFS(Register!$AL$10:$AL$1048576,Register!$AF$10:$AF$1048576,">="&$C15,Register!$AF$10:$AF$1048576,"<="&$H15,Register!$AB$10:$AB$1048576,"="&$U$7)=0,"",SUMIFS(Register!$AL$10:$AL$1048576,Register!$AF$10:$AF$1048576,">="&$C15,Register!$AF$10:$AF$1048576,"<="&$H15,Register!$AB$10:$AB$1048576,"="&$U$7)) ->  | Y15: =IF(SUMIFS(Register!$AL$10:$AL$1048576,Register!$AF$10:$AF$1048576,">="&$C15,Register!$AF$10:$AF$1048576,"<="&$H15,Register!$AB$10:$AB$1048576,"="&$Y$7)=0,"",SUMIFS(Register!$AL$10:$AL$1048576,Register!$AF$10:$AF$1048576,">="&$C15,Register!$AF$10:$AF$1048576,"<="&$H15,Register!$AB$10:$AB$1048576,"="&$Y$7)) ->  | AC15: =IF(SUMIFS(Register!$AL$10:$AL$1048576,Register!$AF$10:$AF$1048576,">="&$C15,Register!$AF$10:$AF$1048576,"<="&$H15,Register!$AB$10:$AB$1048576,"="&$AC$7)=0,"",SUMIFS(Register!$AL$10:$AL$1048576,Register!$AF$10:$AF$1048576,">="&$C15,Register!$AF$10:$AF$1048576,"<="&$H15,Register!$AB$10:$AB$1048576,"="&$AC$7)) ->  | AG15: =IF(SUMIFS(Register!$AL$10:$AL$1048576,Register!$AF$10:$AF$1048576,">="&$C15,Register!$AF$10:$AF$1048576,"<="&$H15,Register!$AB$10:$AB$1048576,"="&$AG$7)=0,"",SUMIFS(Register!$AL$10:$AL$1048576,Register!$AF$10:$AF$1048576,">="&$C15,Register!$AF$10:$AF$1048576,"<="&$H15,Register!$AB$10:$AB$1048576,"="&$AG$7)) ->  | AK15: =IF(SUMIFS(Register!$AL$10:$AL$1048576,Register!$AF$10:$AF$1048576,">="&$C15,Register!$AF$10:$AF$1048576,"<="&$H15,Register!$AB$10:$AB$1048576,"="&$AK$7)=0,"",SUMIFS(Register!$AL$10:$AL$1048576,Register!$AF$10:$AF$1048576,">="&$C15,Register!$AF$10:$AF$1048576,"<="&$H15,Register!$AB$10:$AB$1048576,"="&$AK$7)) -> 
A16: 0007 | C16: 2015-07-01 | H16: 2015-07-31 | M16: =IF(SUMIFS(Register!$AL$10:$AL$1048576,Register!$AF$10:$AF$1048576,">="&C16,Register!$AF$10:$AF$1048576,"<="&H16)=0,"",SUMIFS(Register!$AL$10:$AL$1048576,Register!$AF$10:$AF$1048576,">="&C16,Register!$AF$10:$AF$1048576,"<="&H16)) ->  | U16: =IF(SUMIFS(Register!$AL$10:$AL$1048576,Register!$AF$10:$AF$1048576,">="&$C16,Register!$AF$10:$AF$1048576,"<="&$H16,Register!$AB$10:$AB$1048576,"="&$U$7)=0,"",SUMIFS(Register!$AL$10:$AL$1048576,Register!$AF$10:$AF$1048576,">="&$C16,Register!$AF$10:$AF$1048576,"<="&$H16,Register!$AB$10:$AB$1048576,"="&$U$7)) ->  | Y16: =IF(SUMIFS(Register!$AL$10:$AL$1048576,Register!$AF$10:$AF$1048576,">="&$C16,Register!$AF$10:$AF$1048576,"<="&$H16,Register!$AB$10:$AB$1048576,"="&$Y$7)=0,"",SUMIFS(Register!$AL$10:$AL$1048576,Register!$AF$10:$AF$1048576,">="&$C16,Register!$AF$10:$AF$1048576,"<="&$H16,Register!$AB$10:$AB$1048576,"="&$Y$7)) ->  | AC16: =IF(SUMIFS(Register!$AL$10:$AL$1048576,Register!$AF$10:$AF$1048576,">="&$C16,Register!$AF$10:$AF$1048576,"<="&$H16,Register!$AB$10:$AB$1048576,"="&$AC$7)=0,"",SUMIFS(Register!$AL$10:$AL$1048576,Register!$AF$10:$AF$1048576,">="&$C16,Register!$AF$10:$AF$1048576,"<="&$H16,Register!$AB$10:$AB$1048576,"="&$AC$7)) ->  | AG16: =IF(SUMIFS(Register!$AL$10:$AL$1048576,Register!$AF$10:$AF$1048576,">="&$C16,Register!$AF$10:$AF$1048576,"<="&$H16,Register!$AB$10:$AB$1048576,"="&$AG$7)=0,"",SUMIFS(Register!$AL$10:$AL$1048576,Register!$AF$10:$AF$1048576,">="&$C16,Register!$AF$10:$AF$1048576,"<="&$H16,Register!$AB$10:$AB$1048576,"="&$AG$7)) ->  | AK16: =IF(SUMIFS(Register!$AL$10:$AL$1048576,Register!$AF$10:$AF$1048576,">="&$C16,Register!$AF$10:$AF$1048576,"<="&$H16,Register!$AB$10:$AB$1048576,"="&$AK$7)=0,"",SUMIFS(Register!$AL$10:$AL$1048576,Register!$AF$10:$AF$1048576,">="&$C16,Register!$AF$10:$AF$1048576,"<="&$H16,Register!$AB$10:$AB$1048576,"="&$AK$7)) -> 
A17: 0008 | C17: =EDATE(C16,1) -> 2015-08-01 | H17: =EDATE(C17,1)-1 -> 2015-08-31 | M17: =IF(SUMIFS(Register!$AL$10:$AL$1048576,Register!$AF$10:$AF$1048576,">="&C17,Register!$AF$10:$AF$1048576,"<="&H17)=0,"",SUMIFS(Register!$AL$10:$AL$1048576,Register!$AF$10:$AF$1048576,">="&C17,Register!$AF$10:$AF$1048576,"<="&H17)) ->  | U17: =IF(SUMIFS(Register!$AL$10:$AL$1048576,Register!$AF$10:$AF$1048576,">="&$C17,Register!$AF$10:$AF$1048576,"<="&$H17,Register!$AB$10:$AB$1048576,"="&$U$7)=0,"",SUMIFS(Register!$AL$10:$AL$1048576,Register!$AF$10:$AF$1048576,">="&$C17,Register!$AF$10:$AF$1048576,"<="&$H17,Register!$AB$10:$AB$1048576,"="&$U$7)) ->  | Y17: =IF(SUMIFS(Register!$AL$10:$AL$1048576,Register!$AF$10:$AF$1048576,">="&$C17,Register!$AF$10:$AF$1048576,"<="&$H17,Register!$AB$10:$AB$1048576,"="&$Y$7)=0,"",SUMIFS(Register!$AL$10:$AL$1048576,Register!$AF$10:$AF$1048576,">="&$C17,Register!$AF$10:$AF$1048576,"<="&$H17,Register!$AB$10:$AB$1048576,"="&$Y$7)) ->  | AC17: =IF(SUMIFS(Register!$AL$10:$AL$1048576,Register!$AF$10:$AF$1048576,">="&$C17,Register!$AF$10:$AF$1048576,"<="&$H17,Register!$AB$10:$AB$1048576,"="&$AC$7)=0,"",SUMIFS(Register!$AL$10:$AL$1048576,Register!$AF$10:$AF$1048576,">="&$C17,Register!$AF$10:$AF$1048576,"<="&$H17,Register!$AB$10:$AB$1048576,"="&$AC$7)) ->  | AG17: =IF(SUMIFS(Register!$AL$10:$AL$1048576,Register!$AF$10:$AF$1048576,">="&$C17,Register!$AF$10:$AF$1048576,"<="&$H17,Register!$AB$10:$AB$1048576,"="&$AG$7)=0,"",SUMIFS(Register!$AL$10:$AL$1048576,Register!$AF$10:$AF$1048576,">="&$C17,Register!$AF$10:$AF$1048576,"<="&$H17,Register!$AB$10:$AB$1048576,"="&$AG$7)) ->  | AK17: =IF(SUMIFS(Register!$AL$10:$AL$1048576,Register!$AF$10:$AF$1048576,">="&$C17,Register!$AF$10:$AF$1048576,"<="&$H17,Register!$AB$10:$AB$1048576,"="&$AK$7)=0,"",SUMIFS(Register!$AL$10:$AL$1048576,Register!$AF$10:$AF$1048576,">="&$C17,Register!$AF$10:$AF$1048576,"<="&$H17,Register!$AB$10:$AB$1048576,"="&$AK$7)) -> 
A18: 0009 | C18: 2015-09-01 | H18: 2015-09-30 | M18: =IF(SUMIFS(Register!$AL$10:$AL$1048576,Register!$AF$10:$AF$1048576,">="&C18,Register!$AF$10:$AF$1048576,"<="&H18)=0,"",SUMIFS(Register!$AL$10:$AL$1048576,Register!$AF$10:$AF$1048576,">="&C18,Register!$AF$10:$AF$1048576,"<="&H18)) ->  | U18: =IF(SUMIFS(Register!$AL$10:$AL$1048576,Register!$AF$10:$AF$1048576,">="&$C18,Register!$AF$10:$AF$1048576,"<="&$H18,Register!$AB$10:$AB$1048576,"="&$U$7)=0,"",SUMIFS(Register!$AL$10:$AL$1048576,Register!$AF$10:$AF$1048576,">="&$C18,Register!$AF$10:$AF$1048576,"<="&$H18,Register!$AB$10:$AB$1048576,"="&$U$7)) ->  | Y18: =IF(SUMIFS(Register!$AL$10:$AL$1048576,Register!$AF$10:$AF$1048576,">="&$C18,Register!$AF$10:$AF$1048576,"<="&$H18,Register!$AB$10:$AB$1048576,"="&$Y$7)=0,"",SUMIFS(Register!$AL$10:$AL$1048576,Register!$AF$10:$AF$1048576,">="&$C18,Register!$AF$10:$AF$1048576,"<="&$H18,Register!$AB$10:$AB$1048576,"="&$Y$7)) ->  | AC18: =IF(SUMIFS(Register!$AL$10:$AL$1048576,Register!$AF$10:$AF$1048576,">="&$C18,Register!$AF$10:$AF$1048576,"<="&$H18,Register!$AB$10:$AB$1048576,"="&$AC$7)=0,"",SUMIFS(Register!$AL$10:$AL$1048576,Register!$AF$10:$AF$1048576,">="&$C18,Register!$AF$10:$AF$1048576,"<="&$H18,Register!$AB$10:$AB$1048576,"="&$AC$7)) ->  | AG18: =IF(SUMIFS(Register!$AL$10:$AL$1048576,Register!$AF$10:$AF$1048576,">="&$C18,Register!$AF$10:$AF$1048576,"<="&$H18,Register!$AB$10:$AB$1048576,"="&$AG$7)=0,"",SUMIFS(Register!$AL$10:$AL$1048576,Register!$AF$10:$AF$1048576,">="&$C18,Register!$AF$10:$AF$1048576,"<="&$H18,Register!$AB$10:$AB$1048576,"="&$AG$7)) ->  | AK18: =IF(SUMIFS(Register!$AL$10:$AL$1048576,Register!$AF$10:$AF$1048576,">="&$C18,Register!$AF$10:$AF$1048576,"<="&$H18,Register!$AB$10:$AB$1048576,"="&$AK$7)=0,"",SUMIFS(Register!$AL$10:$AL$1048576,Register!$AF$10:$AF$1048576,">="&$C18,Register!$AF$10:$AF$1048576,"<="&$H18,Register!$AB$10:$AB$1048576,"="&$AK$7)) -> 
A19: 0010 | C19: 2015-10-01 | H19: 2015-10-31 | M19: =IF(SUMIFS(Register!$AL$10:$AL$1048576,Register!$AF$10:$AF$1048576,">="&C19,Register!$AF$10:$AF$1048576,"<="&H19)=0,"",SUMIFS(Register!$AL$10:$AL$1048576,Register!$AF$10:$AF$1048576,">="&C19,Register!$AF$10:$AF$1048576,"<="&H19)) ->  | U19: =IF(SUMIFS(Register!$AL$10:$AL$1048576,Register!$AF$10:$AF$1048576,">="&$C19,Register!$AF$10:$AF$1048576,"<="&$H19,Register!$AB$10:$AB$1048576,"="&$U$7)=0,"",SUMIFS(Register!$AL$10:$AL$1048576,Register!$AF$10:$AF$1048576,">="&$C19,Register!$AF$10:$AF$1048576,"<="&$H19,Register!$AB$10:$AB$1048576,"="&$U$7)) ->  | Y19: =IF(SUMIFS(Register!$AL$10:$AL$1048576,Register!$AF$10:$AF$1048576,">="&$C19,Register!$AF$10:$AF$1048576,"<="&$H19,Register!$AB$10:$AB$1048576,"="&$Y$7)=0,"",SUMIFS(Register!$AL$10:$AL$1048576,Register!$AF$10:$AF$1048576,">="&$C19,Register!$AF$10:$AF$1048576,"<="&$H19,Register!$AB$10:$AB$1048576,"="&$Y$7)) ->  | AC19: =IF(SUMIFS(Register!$AL$10:$AL$1048576,Register!$AF$10:$AF$1048576,">="&$C19,Register!$AF$10:$AF$1048576,"<="&$H19,Register!$AB$10:$AB$1048576,"="&$AC$7)=0,"",SUMIFS(Register!$AL$10:$AL$1048576,Register!$AF$10:$AF$1048576,">="&$C19,Register!$AF$10:$AF$1048576,"<="&$H19,Register!$AB$10:$AB$1048576,"="&$AC$7)) ->  | AG19: =IF(SUMIFS(Register!$AL$10:$AL$1048576,Register!$AF$10:$AF$1048576,">="&$C19,Register!$AF$10:$AF$1048576,"<="&$H19,Register!$AB$10:$AB$1048576,"="&$AG$7)=0,"",SUMIFS(Register!$AL$10:$AL$1048576,Register!$AF$10:$AF$1048576,">="&$C19,Register!$AF$10:$AF$1048576,"<="&$H19,Register!$AB$10:$AB$1048576,"="&$AG$7)) ->  | AK19: =IF(SUMIFS(Register!$AL$10:$AL$1048576,Register!$AF$10:$AF$1048576,">="&$C19,Register!$AF$10:$AF$1048576,"<="&$H19,Register!$AB$10:$AB$1048576,"="&$AK$7)=0,"",SUMIFS(Register!$AL$10:$AL$1048576,Register!$AF$10:$AF$1048576,">="&$C19,Register!$AF$10:$AF$1048576,"<="&$H19,Register!$AB$10:$AB$1048576,"="&$AK$7)) -> 
A20: 0011 | C20: 2015-11-01 | H20: 2015-11-30 | M20: =IF(SUMIFS(Register!$AL$10:$AL$1048576,Register!$AF$10:$AF$1048576,">="&C20,Register!$AF$10:$AF$1048576,"<="&H20)=0,"",SUMIFS(Register!$AL$10:$AL$1048576,Register!$AF$10:$AF$1048576,">="&C20,Register!$AF$10:$AF$1048576,"<="&H20)) ->  | U20: =IF(SUMIFS(Register!$AL$10:$AL$1048576,Register!$AF$10:$AF$1048576,">="&$C20,Register!$AF$10:$AF$1048576,"<="&$H20,Register!$AB$10:$AB$1048576,"="&$U$7)=0,"",SUMIFS(Register!$AL$10:$AL$1048576,Register!$AF$10:$AF$1048576,">="&$C20,Register!$AF$10:$AF$1048576,"<="&$H20,Register!$AB$10:$AB$1048576,"="&$U$7)) ->  | Y20: =IF(SUMIFS(Register!$AL$10:$AL$1048576,Register!$AF$10:$AF$1048576,">="&$C20,Register!$AF$10:$AF$1048576,"<="&$H20,Register!$AB$10:$AB$1048576,"="&$Y$7)=0,"",SUMIFS(Register!$AL$10:$AL$1048576,Register!$AF$10:$AF$1048576,">="&$C20,Register!$AF$10:$AF$1048576,"<="&$H20,Register!$AB$10:$AB$1048576,"="&$Y$7)) ->  | AC20: =IF(SUMIFS(Register!$AL$10:$AL$1048576,Register!$AF$10:$AF$1048576,">="&$C20,Register!$AF$10:$AF$1048576,"<="&$H20,Register!$AB$10:$AB$1048576,"="&$AC$7)=0,"",SUMIFS(Register!$AL$10:$AL$1048576,Register!$AF$10:$AF$1048576,">="&$C20,Register!$AF$10:$AF$1048576,"<="&$H20,Register!$AB$10:$AB$1048576,"="&$AC$7)) ->  | AG20: =IF(SUMIFS(Register!$AL$10:$AL$1048576,Register!$AF$10:$AF$1048576,">="&$C20,Register!$AF$10:$AF$1048576,"<="&$H20,Register!$AB$10:$AB$1048576,"="&$AG$7)=0,"",SUMIFS(Register!$AL$10:$AL$1048576,Register!$AF$10:$AF$1048576,">="&$C20,Register!$AF$10:$AF$1048576,"<="&$H20,Register!$AB$10:$AB$1048576,"="&$AG$7)) ->  | AK20: =IF(SUMIFS(Register!$AL$10:$AL$1048576,Register!$AF$10:$AF$1048576,">="&$C20,Register!$AF$10:$AF$1048576,"<="&$H20,Register!$AB$10:$AB$1048576,"="&$AK$7)=0,"",SUMIFS(Register!$AL$10:$AL$1048576,Register!$AF$10:$AF$1048576,">="&$C20,Register!$AF$10:$AF$1048576,"<="&$H20,Register!$AB$10:$AB$1048576,"="&$AK$7)) -> 
A21: 0012 | C21: 2015-12-01 | H21: 2015-12-31 | M21: =IF(SUMIFS(Register!$AL$10:$AL$1048576,Register!$AF$10:$AF$1048576,">="&C21,Register!$AF$10:$AF$1048576,"<="&H21)=0,"",SUMIFS(Register!$AL$10:$AL$1048576,Register!$AF$10:$AF$1048576,">="&C21,Register!$AF$10:$AF$1048576,"<="&H21)) ->  | U21: =IF(SUMIFS(Register!$AL$10:$AL$1048576,Register!$AF$10:$AF$1048576,">="&$C21,Register!$AF$10:$AF$1048576,"<="&$H21,Register!$AB$10:$AB$1048576,"="&$U$7)=0,"",SUMIFS(Register!$AL$10:$AL$1048576,Register!$AF$10:$AF$1048576,">="&$C21,Register!$AF$10:$AF$1048576,"<="&$H21,Register!$AB$10:$AB$1048576,"="&$U$7)) ->  | Y21: =IF(SUMIFS(Register!$AL$10:$AL$1048576,Register!$AF$10:$AF$1048576,">="&$C21,Register!$AF$10:$AF$1048576,"<="&$H21,Register!$AB$10:$AB$1048576,"="&$Y$7)=0,"",SUMIFS(Register!$AL$10:$AL$1048576,Register!$AF$10:$AF$1048576,">="&$C21,Register!$AF$10:$AF$1048576,"<="&$H21,Register!$AB$10:$AB$1048576,"="&$Y$7)) ->  | AC21: =IF(SUMIFS(Register!$AL$10:$AL$1048576,Register!$AF$10:$AF$1048576,">="&$C21,Register!$AF$10:$AF$1048576,"<="&$H21,Register!$AB$10:$AB$1048576,"="&$AC$7)=0,"",SUMIFS(Register!$AL$10:$AL$1048576,Register!$AF$10:$AF$1048576,">="&$C21,Register!$AF$10:$AF$1048576,"<="&$H21,Register!$AB$10:$AB$1048576,"="&$AC$7)) ->  | AG21: =IF(SUMIFS(Register!$AL$10:$AL$1048576,Register!$AF$10:$AF$1048576,">="&$C21,Register!$AF$10:$AF$1048576,"<="&$H21,Register!$AB$10:$AB$1048576,"="&$AG$7)=0,"",SUMIFS(Register!$AL$10:$AL$1048576,Register!$AF$10:$AF$1048576,">="&$C21,Register!$AF$10:$AF$1048576,"<="&$H21,Register!$AB$10:$AB$1048576,"="&$AG$7)) ->  | AK21: =IF(SUMIFS(Register!$AL$10:$AL$1048576,Register!$AF$10:$AF$1048576,">="&$C21,Register!$AF$10:$AF$1048576,"<="&$H21,Register!$AB$10:$AB$1048576,"="&$AK$7)=0,"",SUMIFS(Register!$AL$10:$AL$1048576,Register!$AF$10:$AF$1048576,">="&$C21,Register!$AF$10:$AF$1048576,"<="&$H21,Register!$AB$10:$AB$1048576,"="&$AK$7)) -> 
A22: 0013 | C22: =EDATE(C21,1) -> 2016-01-01 | H22: =EDATE(C22,1)-1 -> 2016-01-31 | M22: =IF(SUMIFS(Register!$AL$10:$AL$1048576,Register!$AF$10:$AF$1048576,">="&C22,Register!$AF$10:$AF$1048576,"<="&H22)=0,"",SUMIFS(Register!$AL$10:$AL$1048576,Register!$AF$10:$AF$1048576,">="&C22,Register!$AF$10:$AF$1048576,"<="&H22)) ->  | U22: =IF(SUMIFS(Register!$AL$10:$AL$1048576,Register!$AF$10:$AF$1048576,">="&$C22,Register!$AF$10:$AF$1048576,"<="&$H22,Register!$AB$10:$AB$1048576,"="&$U$7)=0,"",SUMIFS(Register!$AL$10:$AL$1048576,Register!$AF$10:$AF$1048576,">="&$C22,Register!$AF$10:$AF$1048576,"<="&$H22,Register!$AB$10:$AB$1048576,"="&$U$7)) ->  | Y22: =IF(SUMIFS(Register!$AL$10:$AL$1048576,Register!$AF$10:$AF$1048576,">="&$C22,Register!$AF$10:$AF$1048576,"<="&$H22,Register!$AB$10:$AB$1048576,"="&$Y$7)=0,"",SUMIFS(Register!$AL$10:$AL$1048576,Register!$AF$10:$AF$1048576,">="&$C22,Register!$AF$10:$AF$1048576,"<="&$H22,Register!$AB$10:$AB$1048576,"="&$Y$7)) ->  | AC22: =IF(SUMIFS(Register!$AL$10:$AL$1048576,Register!$AF$10:$AF$1048576,">="&$C22,Register!$AF$10:$AF$1048576,"<="&$H22,Register!$AB$10:$AB$1048576,"="&$AC$7)=0,"",SUMIFS(Register!$AL$10:$AL$1048576,Register!$AF$10:$AF$1048576,">="&$C22,Register!$AF$10:$AF$1048576,"<="&$H22,Register!$AB$10:$AB$1048576,"="&$AC$7)) ->  | AG22: =IF(SUMIFS(Register!$AL$10:$AL$1048576,Register!$AF$10:$AF$1048576,">="&$C22,Register!$AF$10:$AF$1048576,"<="&$H22,Register!$AB$10:$AB$1048576,"="&$AG$7)=0,"",SUMIFS(Register!$AL$10:$AL$1048576,Register!$AF$10:$AF$1048576,">="&$C22,Register!$AF$10:$AF$1048576,"<="&$H22,Register!$AB$10:$AB$1048576,"="&$AG$7)) ->  | AK22: =IF(SUMIFS(Register!$AL$10:$AL$1048576,Register!$AF$10:$AF$1048576,">="&$C22,Register!$AF$10:$AF$1048576,"<="&$H22,Register!$AB$10:$AB$1048576,"="&$AK$7)=0,"",SUMIFS(Register!$AL$10:$AL$1048576,Register!$AF$10:$AF$1048576,">="&$C22,Register!$AF$10:$AF$1048576,"<="&$H22,Register!$AB$10:$AB$1048576,"="&$AK$7)) -> 
A23: 0014 | C23: 2016-02-01 | H23: 2016-02-29 | M23: =IF(SUMIFS(Register!$AL$10:$AL$1048576,Register!$AF$10:$AF$1048576,">="&C23,Register!$AF$10:$AF$1048576,"<="&H23)=0,"",SUMIFS(Register!$AL$10:$AL$1048576,Register!$AF$10:$AF$1048576,">="&C23,Register!$AF$10:$AF$1048576,"<="&H23)) ->  | U23: =IF(SUMIFS(Register!$AL$10:$AL$1048576,Register!$AF$10:$AF$1048576,">="&$C23,Register!$AF$10:$AF$1048576,"<="&$H23,Register!$AB$10:$AB$1048576,"="&$U$7)=0,"",SUMIFS(Register!$AL$10:$AL$1048576,Register!$AF$10:$AF$1048576,">="&$C23,Register!$AF$10:$AF$1048576,"<="&$H23,Register!$AB$10:$AB$1048576,"="&$U$7)) ->  | Y23: =IF(SUMIFS(Register!$AL$10:$AL$1048576,Register!$AF$10:$AF$1048576,">="&$C23,Register!$AF$10:$AF$1048576,"<="&$H23,Register!$AB$10:$AB$1048576,"="&$Y$7)=0,"",SUMIFS(Register!$AL$10:$AL$1048576,Register!$AF$10:$AF$1048576,">="&$C23,Register!$AF$10:$AF$1048576,"<="&$H23,Register!$AB$10:$AB$1048576,"="&$Y$7)) ->  | AC23: =IF(SUMIFS(Register!$AL$10:$AL$1048576,Register!$AF$10:$AF$1048576,">="&$C23,Register!$AF$10:$AF$1048576,"<="&$H23,Register!$AB$10:$AB$1048576,"="&$AC$7)=0,"",SUMIFS(Register!$AL$10:$AL$1048576,Register!$AF$10:$AF$1048576,">="&$C23,Register!$AF$10:$AF$1048576,"<="&$H23,Register!$AB$10:$AB$1048576,"="&$AC$7)) ->  | AG23: =IF(SUMIFS(Register!$AL$10:$AL$1048576,Register!$AF$10:$AF$1048576,">="&$C23,Register!$AF$10:$AF$1048576,"<="&$H23,Register!$AB$10:$AB$1048576,"="&$AG$7)=0,"",SUMIFS(Register!$AL$10:$AL$1048576,Register!$AF$10:$AF$1048576,">="&$C23,Register!$AF$10:$AF$1048576,"<="&$H23,Register!$AB$10:$AB$1048576,"="&$AG$7)) ->  | AK23: =IF(SUMIFS(Register!$AL$10:$AL$1048576,Register!$AF$10:$AF$1048576,">="&$C23,Register!$AF$10:$AF$1048576,"<="&$H23,Register!$AB$10:$AB$1048576,"="&$AK$7)=0,"",SUMIFS(Register!$AL$10:$AL$1048576,Register!$AF$10:$AF$1048576,">="&$C23,Register!$AF$10:$AF$1048576,"<="&$H23,Register!$AB$10:$AB$1048576,"="&$AK$7)) -> 
A24: 0015 | C24: 2016-03-01 | H24: 2016-03-31 | M24: =IF(SUMIFS(Register!$AL$10:$AL$1048576,Register!$AF$10:$AF$1048576,">="&C24,Register!$AF$10:$AF$1048576,"<="&H24)=0,"",SUMIFS(Register!$AL$10:$AL$1048576,Register!$AF$10:$AF$1048576,">="&C24,Register!$AF$10:$AF$1048576,"<="&H24)) ->  | U24: =IF(SUMIFS(Register!$AL$10:$AL$1048576,Register!$AF$10:$AF$1048576,">="&$C24,Register!$AF$10:$AF$1048576,"<="&$H24,Register!$AB$10:$AB$1048576,"="&$U$7)=0,"",SUMIFS(Register!$AL$10:$AL$1048576,Register!$AF$10:$AF$1048576,">="&$C24,Register!$AF$10:$AF$1048576,"<="&$H24,Register!$AB$10:$AB$1048576,"="&$U$7)) ->  | Y24: =IF(SUMIFS(Register!$AL$10:$AL$1048576,Register!$AF$10:$AF$1048576,">="&$C24,Register!$AF$10:$AF$1048576,"<="&$H24,Register!$AB$10:$AB$1048576,"="&$Y$7)=0,"",SUMIFS(Register!$AL$10:$AL$1048576,Register!$AF$10:$AF$1048576,">="&$C24,Register!$AF$10:$AF$1048576,"<="&$H24,Register!$AB$10:$AB$1048576,"="&$Y$7)) ->  | AC24: =IF(SUMIFS(Register!$AL$10:$AL$1048576,Register!$AF$10:$AF$1048576,">="&$C24,Register!$AF$10:$AF$1048576,"<="&$H24,Register!$AB$10:$AB$1048576,"="&$AC$7)=0,"",SUMIFS(Register!$AL$10:$AL$1048576,Register!$AF$10:$AF$1048576,">="&$C24,Register!$AF$10:$AF$1048576,"<="&$H24,Register!$AB$10:$AB$1048576,"="&$AC$7)) ->  | AG24: =IF(SUMIFS(Register!$AL$10:$AL$1048576,Register!$AF$10:$AF$1048576,">="&$C24,Register!$AF$10:$AF$1048576,"<="&$H24,Register!$AB$10:$AB$1048576,"="&$AG$7)=0,"",SUMIFS(Register!$AL$10:$AL$1048576,Register!$AF$10:$AF$1048576,">="&$C24,Register!$AF$10:$AF$1048576,"<="&$H24,Register!$AB$10:$AB$1048576,"="&$AG$7)) ->  | AK24: =IF(SUMIFS(Register!$AL$10:$AL$1048576,Register!$AF$10:$AF$1048576,">="&$C24,Register!$AF$10:$AF$1048576,"<="&$H24,Register!$AB$10:$AB$1048576,"="&$AK$7)=0,"",SUMIFS(Register!$AL$10:$AL$1048576,Register!$AF$10:$AF$1048576,">="&$C24,Register!$AF$10:$AF$1048576,"<="&$H24,Register!$AB$10:$AB$1048576,"="&$AK$7)) -> 
A25: 0016 | C25: 2016-04-01 | H25: 2016-04-30 | M25: =IF(SUMIFS(Register!$AL$10:$AL$1048576,Register!$AF$10:$AF$1048576,">="&C25,Register!$AF$10:$AF$1048576,"<="&H25)=0,"",SUMIFS(Register!$AL$10:$AL$1048576,Register!$AF$10:$AF$1048576,">="&C25,Register!$AF$10:$AF$1048576,"<="&H25)) ->  | U25: =IF(SUMIFS(Register!$AL$10:$AL$1048576,Register!$AF$10:$AF$1048576,">="&$C25,Register!$AF$10:$AF$1048576,"<="&$H25,Register!$AB$10:$AB$1048576,"="&$U$7)=0,"",SUMIFS(Register!$AL$10:$AL$1048576,Register!$AF$10:$AF$1048576,">="&$C25,Register!$AF$10:$AF$1048576,"<="&$H25,Register!$AB$10:$AB$1048576,"="&$U$7)) ->  | Y25: =IF(SUMIFS(Register!$AL$10:$AL$1048576,Register!$AF$10:$AF$1048576,">="&$C25,Register!$AF$10:$AF$1048576,"<="&$H25,Register!$AB$10:$AB$1048576,"="&$Y$7)=0,"",SUMIFS(Register!$AL$10:$AL$1048576,Register!$AF$10:$AF$1048576,">="&$C25,Register!$AF$10:$AF$1048576,"<="&$H25,Register!$AB$10:$AB$1048576,"="&$Y$7)) ->  | AC25: =IF(SUMIFS(Register!$AL$10:$AL$1048576,Register!$AF$10:$AF$1048576,">="&$C25,Register!$AF$10:$AF$1048576,"<="&$H25,Register!$AB$10:$AB$1048576,"="&$AC$7)=0,"",SUMIFS(Register!$AL$10:$AL$1048576,Register!$AF$10:$AF$1048576,">="&$C25,Register!$AF$10:$AF$1048576,"<="&$H25,Register!$AB$10:$AB$1048576,"="&$AC$7)) ->  | AG25: =IF(SUMIFS(Register!$AL$10:$AL$1048576,Register!$AF$10:$AF$1048576,">="&$C25,Register!$AF$10:$AF$1048576,"<="&$H25,Register!$AB$10:$AB$1048576,"="&$AG$7)=0,"",SUMIFS(Register!$AL$10:$AL$1048576,Register!$AF$10:$AF$1048576,">="&$C25,Register!$AF$10:$AF$1048576,"<="&$H25,Register!$AB$10:$AB$1048576,"="&$AG$7)) ->  | AK25: =IF(SUMIFS(Register!$AL$10:$AL$1048576,Register!$AF$10:$AF$1048576,">="&$C25,Register!$AF$10:$AF$1048576,"<="&$H25,Register!$AB$10:$AB$1048576,"="&$AK$7)=0,"",SUMIFS(Register!$AL$10:$AL$1048576,Register!$AF$10:$AF$1048576,">="&$C25,Register!$AF$10:$AF$1048576,"<="&$H25,Register!$AB$10:$AB$1048576,"="&$AK$7)) -> 
A26: 0017 | C26: 2016-05-01 | H26: 2016-05-31 | M26: =IF(SUMIFS(Register!$AL$10:$AL$1048576,Register!$AF$10:$AF$1048576,">="&C26,Register!$AF$10:$AF$1048576,"<="&H26)=0,"",SUMIFS(Register!$AL$10:$AL$1048576,Register!$AF$10:$AF$1048576,">="&C26,Register!$AF$10:$AF$1048576,"<="&H26)) ->  | U26: =IF(SUMIFS(Register!$AL$10:$AL$1048576,Register!$AF$10:$AF$1048576,">="&$C26,Register!$AF$10:$AF$1048576,"<="&$H26,Register!$AB$10:$AB$1048576,"="&$U$7)=0,"",SUMIFS(Register!$AL$10:$AL$1048576,Register!$AF$10:$AF$1048576,">="&$C26,Register!$AF$10:$AF$1048576,"<="&$H26,Register!$AB$10:$AB$1048576,"="&$U$7)) ->  | Y26: =IF(SUMIFS(Register!$AL$10:$AL$1048576,Register!$AF$10:$AF$1048576,">="&$C26,Register!$AF$10:$AF$1048576,"<="&$H26,Register!$AB$10:$AB$1048576,"="&$Y$7)=0,"",SUMIFS(Register!$AL$10:$AL$1048576,Register!$AF$10:$AF$1048576,">="&$C26,Register!$AF$10:$AF$1048576,"<="&$H26,Register!$AB$10:$AB$1048576,"="&$Y$7)) ->  | AC26: =IF(SUMIFS(Register!$AL$10:$AL$1048576,Register!$AF$10:$AF$1048576,">="&$C26,Register!$AF$10:$AF$1048576,"<="&$H26,Register!$AB$10:$AB$1048576,"="&$AC$7)=0,"",SUMIFS(Register!$AL$10:$AL$1048576,Register!$AF$10:$AF$1048576,">="&$C26,Register!$AF$10:$AF$1048576,"<="&$H26,Register!$AB$10:$AB$1048576,"="&$AC$7)) ->  | AG26: =IF(SUMIFS(Register!$AL$10:$AL$1048576,Register!$AF$10:$AF$1048576,">="&$C26,Register!$AF$10:$AF$1048576,"<="&$H26,Register!$AB$10:$AB$1048576,"="&$AG$7)=0,"",SUMIFS(Register!$AL$10:$AL$1048576,Register!$AF$10:$AF$1048576,">="&$C26,Register!$AF$10:$AF$1048576,"<="&$H26,Register!$AB$10:$AB$1048576,"="&$AG$7)) ->  | AK26: =IF(SUMIFS(Register!$AL$10:$AL$1048576,Register!$AF$10:$AF$1048576,">="&$C26,Register!$AF$10:$AF$1048576,"<="&$H26,Register!$AB$10:$AB$1048576,"="&$AK$7)=0,"",SUMIFS(Register!$AL$10:$AL$1048576,Register!$AF$10:$AF$1048576,">="&$C26,Register!$AF$10:$AF$1048576,"<="&$H26,Register!$AB$10:$AB$1048576,"="&$AK$7)) -> 
A27: 0018 | C27: 2016-06-01 | H27: 2016-06-30 | M27: =IF(SUMIFS(Register!$AL$10:$AL$1048576,Register!$AF$10:$AF$1048576,">="&C27,Register!$AF$10:$AF$1048576,"<="&H27)=0,"",SUMIFS(Register!$AL$10:$AL$1048576,Register!$AF$10:$AF$1048576,">="&C27,Register!$AF$10:$AF$1048576,"<="&H27)) ->  | U27: =IF(SUMIFS(Register!$AL$10:$AL$1048576,Register!$AF$10:$AF$1048576,">="&$C27,Register!$AF$10:$AF$1048576,"<="&$H27,Register!$AB$10:$AB$1048576,"="&$U$7)=0,"",SUMIFS(Register!$AL$10:$AL$1048576,Register!$AF$10:$AF$1048576,">="&$C27,Register!$AF$10:$AF$1048576,"<="&$H27,Register!$AB$10:$AB$1048576,"="&$U$7)) ->  | Y27: =IF(SUMIFS(Register!$AL$10:$AL$1048576,Register!$AF$10:$AF$1048576,">="&$C27,Register!$AF$10:$AF$1048576,"<="&$H27,Register!$AB$10:$AB$1048576,"="&$Y$7)=0,"",SUMIFS(Register!$AL$10:$AL$1048576,Register!$AF$10:$AF$1048576,">="&$C27,Register!$AF$10:$AF$1048576,"<="&$H27,Register!$AB$10:$AB$1048576,"="&$Y$7)) ->  | AC27: =IF(SUMIFS(Register!$AL$10:$AL$1048576,Register!$AF$10:$AF$1048576,">="&$C27,Register!$AF$10:$AF$1048576,"<="&$H27,Register!$AB$10:$AB$1048576,"="&$AC$7)=0,"",SUMIFS(Register!$AL$10:$AL$1048576,Register!$AF$10:$AF$1048576,">="&$C27,Register!$AF$10:$AF$1048576,"<="&$H27,Register!$AB$10:$AB$1048576,"="&$AC$7)) ->  | AG27: =IF(SUMIFS(Register!$AL$10:$AL$1048576,Register!$AF$10:$AF$1048576,">="&$C27,Register!$AF$10:$AF$1048576,"<="&$H27,Register!$AB$10:$AB$1048576,"="&$AG$7)=0,"",SUMIFS(Register!$AL$10:$AL$1048576,Register!$AF$10:$AF$1048576,">="&$C27,Register!$AF$10:$AF$1048576,"<="&$H27,Register!$AB$10:$AB$1048576,"="&$AG$7)) ->  | AK27: =IF(SUMIFS(Register!$AL$10:$AL$1048576,Register!$AF$10:$AF$1048576,">="&$C27,Register!$AF$10:$AF$1048576,"<="&$H27,Register!$AB$10:$AB$1048576,"="&$AK$7)=0,"",SUMIFS(Register!$AL$10:$AL$1048576,Register!$AF$10:$AF$1048576,">="&$C27,Register!$AF$10:$AF$1048576,"<="&$H27,Register!$AB$10:$AB$1048576,"="&$AK$7)) -> 
A28: 0019 | C28: 2016-07-01 | H28: 2016-07-31 | M28: =IF(SUMIFS(Register!$AL$10:$AL$1048576,Register!$AF$10:$AF$1048576,">="&C28,Register!$AF$10:$AF$1048576,"<="&H28)=0,"",SUMIFS(Register!$AL$10:$AL$1048576,Register!$AF$10:$AF$1048576,">="&C28,Register!$AF$10:$AF$1048576,"<="&H28)) ->  | U28: =IF(SUMIFS(Register!$AL$10:$AL$1048576,Register!$AF$10:$AF$1048576,">="&$C28,Register!$AF$10:$AF$1048576,"<="&$H28,Register!$AB$10:$AB$1048576,"="&$U$7)=0,"",SUMIFS(Register!$AL$10:$AL$1048576,Register!$AF$10:$AF$1048576,">="&$C28,Register!$AF$10:$AF$1048576,"<="&$H28,Register!$AB$10:$AB$1048576,"="&$U$7)) ->  | Y28: =IF(SUMIFS(Register!$AL$10:$AL$1048576,Register!$AF$10:$AF$1048576,">="&$C28,Register!$AF$10:$AF$1048576,"<="&$H28,Register!$AB$10:$AB$1048576,"="&$Y$7)=0,"",SUMIFS(Register!$AL$10:$AL$1048576,Register!$AF$10:$AF$1048576,">="&$C28,Register!$AF$10:$AF$1048576,"<="&$H28,Register!$AB$10:$AB$1048576,"="&$Y$7)) ->  | AC28: =IF(SUMIFS(Register!$AL$10:$AL$1048576,Register!$AF$10:$AF$1048576,">="&$C28,Register!$AF$10:$AF$1048576,"<="&$H28,Register!$AB$10:$AB$1048576,"="&$AC$7)=0,"",SUMIFS(Register!$AL$10:$AL$1048576,Register!$AF$10:$AF$1048576,">="&$C28,Register!$AF$10:$AF$1048576,"<="&$H28,Register!$AB$10:$AB$1048576,"="&$AC$7)) ->  | AG28: =IF(SUMIFS(Register!$AL$10:$AL$1048576,Register!$AF$10:$AF$1048576,">="&$C28,Register!$AF$10:$AF$1048576,"<="&$H28,Register!$AB$10:$AB$1048576,"="&$AG$7)=0,"",SUMIFS(Register!$AL$10:$AL$1048576,Register!$AF$10:$AF$1048576,">="&$C28,Register!$AF$10:$AF$1048576,"<="&$H28,Register!$AB$10:$AB$1048576,"="&$AG$7)) ->  | AK28: =IF(SUMIFS(Register!$AL$10:$AL$1048576,Register!$AF$10:$AF$1048576,">="&$C28,Register!$AF$10:$AF$1048576,"<="&$H28,Register!$AB$10:$AB$1048576,"="&$AK$7)=0,"",SUMIFS(Register!$AL$10:$AL$1048576,Register!$AF$10:$AF$1048576,">="&$C28,Register!$AF$10:$AF$1048576,"<="&$H28,Register!$AB$10:$AB$1048576,"="&$AK$7)) -> 
A29: 0020 | C29: 2016-08-01 | H29: 2016-08-31 | M29: =IF(SUMIFS(Register!$AL$10:$AL$1048576,Register!$AF$10:$AF$1048576,">="&C29,Register!$AF$10:$AF$1048576,"<="&H29)=0,"",SUMIFS(Register!$AL$10:$AL$1048576,Register!$AF$10:$AF$1048576,">="&C29,Register!$AF$10:$AF$1048576,"<="&H29)) ->  | U29: =IF(SUMIFS(Register!$AL$10:$AL$1048576,Register!$AF$10:$AF$1048576,">="&$C29,Register!$AF$10:$AF$1048576,"<="&$H29,Register!$AB$10:$AB$1048576,"="&$U$7)=0,"",SUMIFS(Register!$AL$10:$AL$1048576,Register!$AF$10:$AF$1048576,">="&$C29,Register!$AF$10:$AF$1048576,"<="&$H29,Register!$AB$10:$AB$1048576,"="&$U$7)) ->  | Y29: =IF(SUMIFS(Register!$AL$10:$AL$1048576,Register!$AF$10:$AF$1048576,">="&$C29,Register!$AF$10:$AF$1048576,"<="&$H29,Register!$AB$10:$AB$1048576,"="&$Y$7)=0,"",SUMIFS(Register!$AL$10:$AL$1048576,Register!$AF$10:$AF$1048576,">="&$C29,Register!$AF$10:$AF$1048576,"<="&$H29,Register!$AB$10:$AB$1048576,"="&$Y$7)) ->  | AC29: =IF(SUMIFS(Register!$AL$10:$AL$1048576,Register!$AF$10:$AF$1048576,">="&$C29,Register!$AF$10:$AF$1048576,"<="&$H29,Register!$AB$10:$AB$1048576,"="&$AC$7)=0,"",SUMIFS(Register!$AL$10:$AL$1048576,Register!$AF$10:$AF$1048576,">="&$C29,Register!$AF$10:$AF$1048576,"<="&$H29,Register!$AB$10:$AB$1048576,"="&$AC$7)) ->  | AG29: =IF(SUMIFS(Register!$AL$10:$AL$1048576,Register!$AF$10:$AF$1048576,">="&$C29,Register!$AF$10:$AF$1048576,"<="&$H29,Register!$AB$10:$AB$1048576,"="&$AG$7)=0,"",SUMIFS(Register!$AL$10:$AL$1048576,Register!$AF$10:$AF$1048576,">="&$C29,Register!$AF$10:$AF$1048576,"<="&$H29,Register!$AB$10:$AB$1048576,"="&$AG$7)) ->  | AK29: =IF(SUMIFS(Register!$AL$10:$AL$1048576,Register!$AF$10:$AF$1048576,">="&$C29,Register!$AF$10:$AF$1048576,"<="&$H29,Register!$AB$10:$AB$1048576,"="&$AK$7)=0,"",SUMIFS(Register!$AL$10:$AL$1048576,Register!$AF$10:$AF$1048576,">="&$C29,Register!$AF$10:$AF$1048576,"<="&$H29,Register!$AB$10:$AB$1048576,"="&$AK$7)) -> 
A30: 0021 | C30: 2016-09-01 | H30: 2016-09-30 | M30: =IF(SUMIFS(Register!$AL$10:$AL$1048576,Register!$AF$10:$AF$1048576,">="&C30,Register!$AF$10:$AF$1048576,"<="&H30)=0,"",SUMIFS(Register!$AL$10:$AL$1048576,Register!$AF$10:$AF$1048576,">="&C30,Register!$AF$10:$AF$1048576,"<="&H30)) ->  | U30: =IF(SUMIFS(Register!$AL$10:$AL$1048576,Register!$AF$10:$AF$1048576,">="&$C30,Register!$AF$10:$AF$1048576,"<="&$H30,Register!$AB$10:$AB$1048576,"="&$U$7)=0,"",SUMIFS(Register!$AL$10:$AL$1048576,Register!$AF$10:$AF$1048576,">="&$C30,Register!$AF$10:$AF$1048576,"<="&$H30,Register!$AB$10:$AB$1048576,"="&$U$7)) ->  | Y30: =IF(SUMIFS(Register!$AL$10:$AL$1048576,Register!$AF$10:$AF$1048576,">="&$C30,Register!$AF$10:$AF$1048576,"<="&$H30,Register!$AB$10:$AB$1048576,"="&$Y$7)=0,"",SUMIFS(Register!$AL$10:$AL$1048576,Register!$AF$10:$AF$1048576,">="&$C30,Register!$AF$10:$AF$1048576,"<="&$H30,Register!$AB$10:$AB$1048576,"="&$Y$7)) ->  | AC30: =IF(SUMIFS(Register!$AL$10:$AL$1048576,Register!$AF$10:$AF$1048576,">="&$C30,Register!$AF$10:$AF$1048576,"<="&$H30,Register!$AB$10:$AB$1048576,"="&$AC$7)=0,"",SUMIFS(Register!$AL$10:$AL$1048576,Register!$AF$10:$AF$1048576,">="&$C30,Register!$AF$10:$AF$1048576,"<="&$H30,Register!$AB$10:$AB$1048576,"="&$AC$7)) ->  | AG30: =IF(SUMIFS(Register!$AL$10:$AL$1048576,Register!$AF$10:$AF$1048576,">="&$C30,Register!$AF$10:$AF$1048576,"<="&$H30,Register!$AB$10:$AB$1048576,"="&$AG$7)=0,"",SUMIFS(Register!$AL$10:$AL$1048576,Register!$AF$10:$AF$1048576,">="&$C30,Register!$AF$10:$AF$1048576,"<="&$H30,Register!$AB$10:$AB$1048576,"="&$AG$7)) ->  | AK30: =IF(SUMIFS(Register!$AL$10:$AL$1048576,Register!$AF$10:$AF$1048576,">="&$C30,Register!$AF$10:$AF$1048576,"<="&$H30,Register!$AB$10:$AB$1048576,"="&$AK$7)=0,"",SUMIFS(Register!$AL$10:$AL$1048576,Register!$AF$10:$AF$1048576,">="&$C30,Register!$AF$10:$AF$1048576,"<="&$H30,Register!$AB$10:$AB$1048576,"="&$AK$7)) -> 
A31: 0022 | C31: 2016-10-01 | H31: 2016-10-31 | M31: =IF(SUMIFS(Register!$AL$10:$AL$1048576,Register!$AF$10:$AF$1048576,">="&C31,Register!$AF$10:$AF$1048576,"<="&H31)=0,"",SUMIFS(Register!$AL$10:$AL$1048576,Register!$AF$10:$AF$1048576,">="&C31,Register!$AF$10:$AF$1048576,"<="&H31)) ->  | U31: =IF(SUMIFS(Register!$AL$10:$AL$1048576,Register!$AF$10:$AF$1048576,">="&$C31,Register!$AF$10:$AF$1048576,"<="&$H31,Register!$AB$10:$AB$1048576,"="&$U$7)=0,"",SUMIFS(Register!$AL$10:$AL$1048576,Register!$AF$10:$AF$1048576,">="&$C31,Register!$AF$10:$AF$1048576,"<="&$H31,Register!$AB$10:$AB$1048576,"="&$U$7)) ->  | Y31: =IF(SUMIFS(Register!$AL$10:$AL$1048576,Register!$AF$10:$AF$1048576,">="&$C31,Register!$AF$10:$AF$1048576,"<="&$H31,Register!$AB$10:$AB$1048576,"="&$Y$7)=0,"",SUMIFS(Register!$AL$10:$AL$1048576,Register!$AF$10:$AF$1048576,">="&$C31,Register!$AF$10:$AF$1048576,"<="&$H31,Register!$AB$10:$AB$1048576,"="&$Y$7)) ->  | AC31: =IF(SUMIFS(Register!$AL$10:$AL$1048576,Register!$AF$10:$AF$1048576,">="&$C31,Register!$AF$10:$AF$1048576,"<="&$H31,Register!$AB$10:$AB$1048576,"="&$AC$7)=0,"",SUMIFS(Register!$AL$10:$AL$1048576,Register!$AF$10:$AF$1048576,">="&$C31,Register!$AF$10:$AF$1048576,"<="&$H31,Register!$AB$10:$AB$1048576,"="&$AC$7)) ->  | AG31: =IF(SUMIFS(Register!$AL$10:$AL$1048576,Register!$AF$10:$AF$1048576,">="&$C31,Register!$AF$10:$AF$1048576,"<="&$H31,Register!$AB$10:$AB$1048576,"="&$AG$7)=0,"",SUMIFS(Register!$AL$10:$AL$1048576,Register!$AF$10:$AF$1048576,">="&$C31,Register!$AF$10:$AF$1048576,"<="&$H31,Register!$AB$10:$AB$1048576,"="&$AG$7)) ->  | AK31: =IF(SUMIFS(Register!$AL$10:$AL$1048576,Register!$AF$10:$AF$1048576,">="&$C31,Register!$AF$10:$AF$1048576,"<="&$H31,Register!$AB$10:$AB$1048576,"="&$AK$7)=0,"",SUMIFS(Register!$AL$10:$AL$1048576,Register!$AF$10:$AF$1048576,">="&$C31,Register!$AF$10:$AF$1048576,"<="&$H31,Register!$AB$10:$AB$1048576,"="&$AK$7)) -> 
A32: 0023 | C32: =EDATE(C31,1) -> 2016-11-01 | H32: =EDATE(C32,1)-1 -> 2016-11-30 | M32: =IF(SUMIFS(Register!$AL$10:$AL$1048576,Register!$AF$10:$AF$1048576,">="&C32,Register!$AF$10:$AF$1048576,"<="&H32)=0,"",SUMIFS(Register!$AL$10:$AL$1048576,Register!$AF$10:$AF$1048576,">="&C32,Register!$AF$10:$AF$1048576,"<="&H32)) ->  | U32: =IF(SUMIFS(Register!$AL$10:$AL$1048576,Register!$AF$10:$AF$1048576,">="&$C32,Register!$AF$10:$AF$1048576,"<="&$H32,Register!$AB$10:$AB$1048576,"="&$U$7)=0,"",SUMIFS(Register!$AL$10:$AL$1048576,Register!$AF$10:$AF$1048576,">="&$C32,Register!$AF$10:$AF$1048576,"<="&$H32,Register!$AB$10:$AB$1048576,"="&$U$7)) ->  | Y32: =IF(SUMIFS(Register!$AL$10:$AL$1048576,Register!$AF$10:$AF$1048576,">="&$C32,Register!$AF$10:$AF$1048576,"<="&$H32,Register!$AB$10:$AB$1048576,"="&$Y$7)=0,"",SUMIFS(Register!$AL$10:$AL$1048576,Register!$AF$10:$AF$1048576,">="&$C32,Register!$AF$10:$AF$1048576,"<="&$H32,Register!$AB$10:$AB$1048576,"="&$Y$7)) ->  | AC32: =IF(SUMIFS(Register!$AL$10:$AL$1048576,Register!$AF$10:$AF$1048576,">="&$C32,Register!$AF$10:$AF$1048576,"<="&$H32,Register!$AB$10:$AB$1048576,"="&$AC$7)=0,"",SUMIFS(Register!$AL$10:$AL$1048576,Register!$AF$10:$AF$1048576,">="&$C32,Register!$AF$10:$AF$1048576,"<="&$H32,Register!$AB$10:$AB$1048576,"="&$AC$7)) ->  | AG32: =IF(SUMIFS(Register!$AL$10:$AL$1048576,Register!$AF$10:$AF$1048576,">="&$C32,Register!$AF$10:$AF$1048576,"<="&$H32,Register!$AB$10:$AB$1048576,"="&$AG$7)=0,"",SUMIFS(Register!$AL$10:$AL$1048576,Register!$AF$10:$AF$1048576,">="&$C32,Register!$AF$10:$AF$1048576,"<="&$H32,Register!$AB$10:$AB$1048576,"="&$AG$7)) ->  | AK32: =IF(SUMIFS(Register!$AL$10:$AL$1048576,Register!$AF$10:$AF$1048576,">="&$C32,Register!$AF$10:$AF$1048576,"<="&$H32,Register!$AB$10:$AB$1048576,"="&$AK$7)=0,"",SUMIFS(Register!$AL$10:$AL$1048576,Register!$AF$10:$AF$1048576,">="&$C32,Register!$AF$10:$AF$1048576,"<="&$H32,Register!$AB$10:$AB$1048576,"="&$AK$7)) -> 
A33: 0024 | C33: 2016-12-01 | H33: 2016-12-31 | M33: =IF(SUMIFS(Register!$AL$10:$AL$1048576,Register!$AF$10:$AF$1048576,">="&C33,Register!$AF$10:$AF$1048576,"<="&H33)=0,"",SUMIFS(Register!$AL$10:$AL$1048576,Register!$AF$10:$AF$1048576,">="&C33,Register!$AF$10:$AF$1048576,"<="&H33)) ->  | U33: =IF(SUMIFS(Register!$AL$10:$AL$1048576,Register!$AF$10:$AF$1048576,">="&$C33,Register!$AF$10:$AF$1048576,"<="&$H33,Register!$AB$10:$AB$1048576,"="&$U$7)=0,"",SUMIFS(Register!$AL$10:$AL$1048576,Register!$AF$10:$AF$1048576,">="&$C33,Register!$AF$10:$AF$1048576,"<="&$H33,Register!$AB$10:$AB$1048576,"="&$U$7)) ->  | Y33: =IF(SUMIFS(Register!$AL$10:$AL$1048576,Register!$AF$10:$AF$1048576,">="&$C33,Register!$AF$10:$AF$1048576,"<="&$H33,Register!$AB$10:$AB$1048576,"="&$Y$7)=0,"",SUMIFS(Register!$AL$10:$AL$1048576,Register!$AF$10:$AF$1048576,">="&$C33,Register!$AF$10:$AF$1048576,"<="&$H33,Register!$AB$10:$AB$1048576,"="&$Y$7)) ->  | AC33: =IF(SUMIFS(Register!$AL$10:$AL$1048576,Register!$AF$10:$AF$1048576,">="&$C33,Register!$AF$10:$AF$1048576,"<="&$H33,Register!$AB$10:$AB$1048576,"="&$AC$7)=0,"",SUMIFS(Register!$AL$10:$AL$1048576,Register!$AF$10:$AF$1048576,">="&$C33,Register!$AF$10:$AF$1048576,"<="&$H33,Register!$AB$10:$AB$1048576,"="&$AC$7)) ->  | AG33: =IF(SUMIFS(Register!$AL$10:$AL$1048576,Register!$AF$10:$AF$1048576,">="&$C33,Register!$AF$10:$AF$1048576,"<="&$H33,Register!$AB$10:$AB$1048576,"="&$AG$7)=0,"",SUMIFS(Register!$AL$10:$AL$1048576,Register!$AF$10:$AF$1048576,">="&$C33,Register!$AF$10:$AF$1048576,"<="&$H33,Register!$AB$10:$AB$1048576,"="&$AG$7)) ->  | AK33: =IF(SUMIFS(Register!$AL$10:$AL$1048576,Register!$AF$10:$AF$1048576,">="&$C33,Register!$AF$10:$AF$1048576,"<="&$H33,Register!$AB$10:$AB$1048576,"="&$AK$7)=0,"",SUMIFS(Register!$AL$10:$AL$1048576,Register!$AF$10:$AF$1048576,">="&$C33,Register!$AF$10:$AF$1048576,"<="&$H33,Register!$AB$10:$AB$1048576,"="&$AK$7)) -> 
M34: Total: | Q34: =SUM(Q10:T33) -> 198.0m3 | U34: =SUM(U10:X33) -> 38.0m3 | Y34: =SUM(Y10:AB33) -> 38.0m3 | AC34: =SUM(AC10:AF33) -> 38.0m3 | AG34: =SUM(AG10:AJ33) -> 38.0m3 | AK34: =SUM(AK10:AN33) -> 46.0m3

Sheet Supplier
A1: Supplier A
A2: Supplier B
A3: Supplier C
A4: Supplier D
A5: Supplier E

Sheet Cube ID
A1: =IF('[1]WBS ID'!A2=0,"",'[1]WBS ID'!A2) -> Location | C1: Area | E1: =IF('[1]WBS ID'!E2=0,"",'[1]WBS ID'!E2) -> Item | G1: Narration | I1: This table technically is without function and just provides a sample how to build a cube ID.
A2: B1 | B2: Building 1 | C2: GN | D2: Site/General | E2: =IF('[1]WBS ID'!E3=0,"",'[1]WBS ID'!E3) -> CL | F2: Column | G2: A1:B5 | H2: here Gridline A1 - B5
A3: B2 | B3: Building 2 | C3: BM | D3: Basement | E3: =IF('[1]WBS ID'!E4=0,"",'[1]WBS ID'!E4) -> GB | F3: Ground Beam | G3: …
A4: B3 | B4: Building 3 | C4: GF | D4: Groundfloor | E4: =IF('[1]WBS ID'!E5=0,"",'[1]WBS ID'!E5) -> IB | F4: Intermediate Beam
A5: GN | B5: General | C5: MF | D5: Mezzanine Floor | E5: SL | F5: Slab
C6: F1 | D6: Floor 1 | E6: WA | F6: Wall
C7: =IF('[1]WBS ID'!C8=0,"",'[1]WBS ID'!C8) -> …
C8: F11 | D8: Floor 11
C9: RF | D9: Roof
C10: =IF('[1]WBS ID'!C11=0,"",'[1]WBS ID'!C11) -> 
A11: =IF('[1]WBS ID'!A12=0,"",'[1]WBS ID'!A12) ->  | C11: =IF('[1]WBS ID'!C12=0,"",'[1]WBS ID'!C12) ->  | E11: =IF('[1]WBS ID'!E12=0,"",'[1]WBS ID'!E12) -> GN
A12: =IF('[1]WBS ID'!A13=0,"",'[1]WBS ID'!A13) ->  | C12: =IF('[1]WBS ID'!C13=0,"",'[1]WBS ID'!C13) ->  | E12: =IF('[1]WBS ID'!E13=0,"",'[1]WBS ID'!E13) -> 
A13: =IF('[1]WBS ID'!A14=0,"",'[1]WBS ID'!A14) ->  | C13: =IF('[1]WBS ID'!C14=0,"",'[1]WBS ID'!C14) ->  | E13: =IF('[1]WBS ID'!E14=0,"",'[1]WBS ID'!E14) -> 
A14: =IF('[1]WBS ID'!A15=0,"",'[1]WBS ID'!A15) ->  | C14: =IF('[1]WBS ID'!C15=0,"",'[1]WBS ID'!C15) ->  | E14: =IF('[1]WBS ID'!E15=0,"",'[1]WBS ID'!E15) -> 
A15: =IF('[1]WBS ID'!A16=0,"",'[1]WBS ID'!A16) ->  | C15: =IF('[1]WBS ID'!C16=0,"",'[1]WBS ID'!C16) ->  | E15: =IF('[1]WBS ID'!E16=0,"",'[1]WBS ID'!E16) -> 
A16: =IF('[1]WBS ID'!A17=0,"",'[1]WBS ID'!A17) ->  | C16: =IF('[1]WBS ID'!C17=0,"",'[1]WBS ID'!C17) ->  | E16: =IF('[1]WBS ID'!E17=0,"",'[1]WBS ID'!E17) -> 
A17: =IF('[1]WBS ID'!A18=0,"",'[1]WBS ID'!A18) ->  | C17: =IF('[1]WBS ID'!C18=0,"",'[1]WBS ID'!C18) ->  | E17: =IF('[1]WBS ID'!E18=0,"",'[1]WBS ID'!E18) -> 
A18: =IF('[1]WBS ID'!A19=0,"",'[1]WBS ID'!A19) ->  | C18: =IF('[1]WBS ID'!C19=0,"",'[1]WBS ID'!C19) ->  | E18: =IF('[1]WBS ID'!E19=0,"",'[1]WBS ID'!E19) -> 
